{"text_format":"1","workbook":"xlsx","n_sheets":7,"sheets":["Tab1","Tab2","Tab3","Tab4","Tab5","Summary","PT"],"not_rendered":{"charts":0,"images":0,"macros":1,"external_links":0,"defined_names":3,"comments":0,"pivot_tables":0},"unopened":[],"bounds":{"document_bytes":16777216,"sheet_cells":100000,"rows_first":2000,"rows_last":500,"rows_between":2000,"halvings":0,"cell_chars":16384,"cell_head_chars":4096},"cells_cut":0,"cells_raw":0,"read":"whole","date_system":"1900"}

{"sheet":"Tab1","index":0,"n_rows":21,"n_cols":5,"rows_kept":21,"cut":false,"hidden":false,"merged":[]}
[]
[null,"Table1"]
[null,"TrackN","Date","Qty","Tag"]
[null,"A215","2011-03-10",89,0]
[null,"A276","2011-03-29",62,1]
[null,"A341","2011-03-01",39,0]
[null,"A207","2011-03-06",24,1]
[null,"A325","2011-02-04",58,1]
[null,"A106","2011-04-15",51,0]
[null,"A146","2011-03-05",33,0]
[null,"A185","2011-03-02",99,0]
[null,"A149","2011-02-09",70,1]
[null,"A352","2011-03-23",31,1]
[null,"A169","2011-01-09",38,0]
[null,"A332","2011-03-14",64,1]
[null,"A142","2011-02-05",29,1]
[null,"A299","2011-02-25",89,1]
[null,"A342","2011-04-26",31,1]
[null,"A273","2011-04-09",16,1]
[null,"A167","2011-02-22",58,1]
[null,"A168","2011-03-04",57,1]

{"sheet":"Tab2","index":1,"n_rows":28,"n_cols":5,"rows_kept":28,"cut":false,"hidden":false,"merged":[]}
[]
[]
[null,"Table2"]
[null,"TrackN","Date","Qty","Tag"]
[null,"A101","2011-04-19",93,1]
[null,"A119","2011-03-06",60,0]
[null,"A159","2011-03-11",64,0]
[null,"A164","2011-02-14",26,0]
[null,"A177","2011-03-05",75,1]
[null,"A178","2011-04-14",29,0]
[null,"A206","2011-04-25",20,0]
[null,"A226","2011-04-03",15,0]
[null,"A228","2011-03-28",43,1]
[null,"A231","2011-03-27",75,0]
[null,"A269","2011-01-19",48,0]
[null,"A274","2011-04-02",56,0]
[null,"A277","2011-01-20",35,0]
[null,"A313","2011-03-14",84,1]
[null,"A331","2011-04-28",65,0]
[null,"A337","2011-02-05",23,0]
[null,"A338","2011-01-01",43,0]
[null,"A339","2011-02-28",72,1]
[null,"A347","2011-03-04",25,0]
[null,"A346","2011-01-20",97,1]
[null,"A350","2011-01-23",30,1]
[null,"A357","2011-02-22",40,0]
[null,"A390","2011-01-09",20,0]
[null,"A399","2011-04-08",92,0]

{"sheet":"Tab3","index":2,"n_rows":17,"n_cols":6,"rows_kept":17,"cut":false,"hidden":false,"merged":[]}
[]
[]
[null,null,"Table3"]
[null,null,"TrackN","Date","Qty","Tag"]
[null,null,"A105","2011-01-19",86,1]
[null,null,"A147","2011-03-17",76,0]
[null,null,"A161","2011-03-25",60,0]
[null,null,"A166","2011-01-20",42,1]
[null,null,"A190","2011-04-28",25,1]
[null,null,"A222","2011-03-27",10,0]
[null,null,"A224","2011-04-04",92,0]
[null,null,"A225","2011-04-04",64,1]
[null,null,"A239","2011-03-03",63,1]
[null,null,"A284","2011-04-05",11,1]
[null,null,"A334","2011-01-11",28,0]
[null,null,"A349","2011-02-25",76,0]
[null,null,"A355","2011-02-05",85,0]

{"sheet":"Tab4","index":3,"n_rows":24,"n_cols":5,"rows_kept":24,"cut":false,"hidden":false,"merged":[]}
[]
[]
[null,"Table4"]
[null,"TrackN","Date","Qty","Tag"]
[null,"A113","2011-04-18",23,{"$f":"RANDBETWEEN(0,1)","v":0}]
[null,"A121","2011-03-29",42,{"$f":"RANDBETWEEN(0,1)","v":1}]
[null,"A131","2011-04-24",83,0]
[null,"A163","2011-04-28",28,0]
[null,"A189","2011-01-06",10,0]
[null,"A210","2011-04-05",34,0]
[null,"A213","2011-03-16",54,1]
[null,"A214","2011-02-24",85,0]
[null,"A220","2011-02-09",83,0]
[null,"A223","2011-04-18",65,1]
[null,"A265","2011-03-20",72,1]
[null,"A267","2011-04-01",30,0]
[null,"A268","2011-02-22",20,1]
[null,"A322","2011-04-23",42,1]
[null,"A348","2011-03-25",87,1]
[null,"A354","2011-02-14",64,1]
[null,"A361","2011-03-15",14,1]
[null,"A377","2011-02-15",42,0]
[null,"A398","2011-04-24",82,0]
[null,"A400","2011-04-11",83,1]

{"sheet":"Tab5","index":4,"n_rows":19,"n_cols":5,"rows_kept":19,"cut":false,"hidden":false,"merged":[]}
[]
[]
[]
[]
[]
[]
[null,"Table5"]
[null,"TrackN","Date","Qty","Tag"]
[null,"A340","2011-03-28",56,{"$f":"RANDBETWEEN(0,1)","v":0}]
[null,"A252","2011-02-10",50,{"$f":"RANDBETWEEN(0,1)","v":1}]
[null,"A155","2011-01-22",30,0]
[null,"A254","2011-04-16",17,0]
[null,"A335","2011-01-26",22,1]
[null,"A385","2011-04-23",86,1]
[null,"A290","2011-02-14",54,1]
[null,"A378","2011-03-28",75,1]
[null,"A369","2011-01-30",37,1]
[null,"A241","2011-03-10",47,1]
[null,"A143","2011-01-12",61,0]

{"sheet":"Summary","index":5,"n_rows":304,"n_cols":9,"rows_kept":304,"cut":false,"hidden":false,"merged":[]}
[]
[null,"Table9"]
[null,"TrackN","Date","Qty","Note"]
[null,"A100",{"$f":"IFERROR(INDEX(Table10[Date],1/(1/SUMPRODUCT((Table10[TrackN]=Table9[[#This Row],[TrackN]])*(Table10[Tag]=1)*(ROW(Table10[])-MIN(ROW(Table10[]))+1)))),\"\")","v":""},{"$f":"IFERROR(INDEX(Table10[Qty],1/(1/SUMPRODUCT((Table10[TrackN]=Table9[[#This Row],[TrackN]])*(Table10[Tag]=1)*(ROW(Table10[])-MIN(ROW(Table10[]))+1)))),\"\")","v":""},"Marshall"]
[null,"A101",{"$f":"IFERROR(INDEX(Table10[Date],1/(1/SUMPRODUCT((Table10[TrackN]=Table9[[#This Row],[TrackN]])*(Table10[Tag]=1)*(ROW(Table10[])-MIN(ROW(Table10[]))+1)))),\"\")","v":"2011-04-19"},{"$f":"IFERROR(INDEX(Table10[Qty],1/(1/SUMPRODUCT((Table10[TrackN]=Table9[[#This Row],[TrackN]])*(Table10[Tag]=1)*(ROW(Table10[])-MIN(ROW(Table10[]))+1)))),\"\")","v":93},"Ross",null,null,null,{"$f":"IFERROR(INDEX(#REF!,1/(1/SUMPRODUCT((#REF!=Table9[[#This Row],[TrackN]])*(#REF!=1)*(ROW(#REF!)-MIN(ROW(#REF!))+1)))),\"\")","v":""}]
[null,"A102",{"$f":"IFERROR(INDEX(Table10[Date],1/(1/SUMPRODUCT((Table10[TrackN]=Table9[[#This Row],[TrackN]])*(Table10[Tag]=1)*(ROW(Table10[])-MIN(ROW(Table10[]))+1)))),\"\")","v":""},{"$f":"IFERROR(INDEX(Table10[Qty],1/(1/SUMPRODUCT((Table10[TrackN]=Table9[[#This Row],[TrackN]])*(Table10[Tag]=1)*(ROW(Table10[])-MIN(ROW(Table10[]))+1)))),\"\")","v":""},"Murray"]
[null,"A103",{"$f":"IFERROR(INDEX(Table10[Date],1/(1/SUMPRODUCT((Table10[TrackN]=Table9[[#This Row],[TrackN]])*(Table10[Tag]=1)*(ROW(Table10[])-MIN(ROW(Table10[]))+1)))),\"\")","v":""},{"$f":"IFERROR(INDEX(Table10[Qty],1/(1/SUMPRODUCT((Table10[TrackN]=Table9[[#This Row],[TrackN]])*(Table10[Tag]=1)*(ROW(Table10[])-MIN(ROW(Table10[]))+1)))),\"\")","v":""},"Ford"]
[null,"A104",{"$f":"IFERROR(INDEX(Table10[Date],1/(1/SUMPRODUCT((Table10[TrackN]=Table9[[#This Row],[TrackN]])*(Table10[Tag]=1)*(ROW(Table10[])-MIN(ROW(Table10[]))+1)))),\"\")","v":""},{"$f":"IFERROR(INDEX(Table10[Qty],1/(1/SUMPRODUCT((Table10[TrackN]=Table9[[#This Row],[TrackN]])*(Table10[Tag]=1)*(ROW(Table10[])-MIN(ROW(Table10[]))+1)))),\"\")","v":""},"Woods"]
[null,"A105",{"$f":"IFERROR(INDEX(Table10[Date],1/(1/SUMPRODUCT((Table10[TrackN]=Table9[[#This Row],[TrackN]])*(Table10[Tag]=1)*(ROW(Table10[])-MIN(ROW(Table10[]))+1)))),\"\")","v":"2011-01-19"},{"$f":"IFERROR(INDEX(Table10[Qty],1/(1/SUMPRODUCT((Table10[TrackN]=Table9[[#This Row],[TrackN]])*(Table10[Tag]=1)*(ROW(Table10[])-MIN(ROW(Table10[]))+1)))),\"\")","v":86},"Simpson"]
[null,"A106",{"$f":"IFERROR(INDEX(Table10[Date],1/(1/SUMPRODUCT((Table10[TrackN]=Table9[[#This Row],[TrackN]])*(Table10[Tag]=1)*(ROW(Table10[])-MIN(ROW(Table10[]))+1)))),\"\")","v":""},{"$f":"IFERROR(INDEX(Table10[Qty],1/(1/SUMPRODUCT((Table10[TrackN]=Table9[[#This Row],[TrackN]])*(Table10[Tag]=1)*(ROW(Table10[])-MIN(ROW(Table10[]))+1)))),\"\")","v":""},"Miller"]
[null,"A107",{"$f":"IFERROR(INDEX(Table10[Date],1/(1/SUMPRODUCT((Table10[TrackN]=Table9[[#This Row],[TrackN]])*(Table10[Tag]=1)*(ROW(Table10[])-MIN(ROW(Table10[]))+1)))),\"\")","v":""},{"$f":"IFERROR(INDEX(Table10[Qty],1/(1/SUMPRODUCT((Table10[TrackN]=Table9[[#This Row],[TrackN]])*(Table10[Tag]=1)*(ROW(Table10[])-MIN(ROW(Table10[]))+1)))),\"\")","v":""},"Lewis"]
[null,"A108",{"$f":"IFERROR(INDEX(Table10[Date],1/(1/SUMPRODUCT((Table10[TrackN]=Table9[[#This Row],[TrackN]])*(Table10[Tag]=1)*(ROW(Table10[])-MIN(ROW(Table10[]))+1)))),\"\")","v":""},{"$f":"IFERROR(INDEX(Table10[Qty],1/(1/SUMPRODUCT((Table10[TrackN]=Table9[[#This Row],[TrackN]])*(Table10[Tag]=1)*(ROW(Table10[])-MIN(ROW(Table10[]))+1)))),\"\")","v":""},"Moore"]
[null,"A109",{"$f":"IFERROR(INDEX(Table10[Date],1/(1/SUMPRODUCT((Table10[TrackN]=Table9[[#This Row],[TrackN]])*(Table10[Tag]=1)*(ROW(Table10[])-MIN(ROW(Table10[]))+1)))),\"\")","v":""},{"$f":"IFERROR(INDEX(Table10[Qty],1/(1/SUMPRODUCT((Table10[TrackN]=Table9[[#This Row],[TrackN]])*(Table10[Tag]=1)*(ROW(Table10[])-MIN(ROW(Table10[]))+1)))),\"\")","v":""},"Crawford"]
[null,"A110",{"$f":"IFERROR(INDEX(Table10[Date],1/(1/SUMPRODUCT((Table10[TrackN]=Table9[[#This Row],[TrackN]])*(Table10[Tag]=1)*(ROW(Table10[])-MIN(ROW(Table10[]))+1)))),\"\")","v":""},{"$f":"IFERROR(INDEX(Table10[Qty],1/(1/SUMPRODUCT((Table10[TrackN]=Table9[[#This Row],[TrackN]])*(Table10[Tag]=1)*(ROW(Table10[])-MIN(ROW(Table10[]))+1)))),\"\")","v":""},"Peterson"]
[null,"A111",{"$f":"IFERROR(INDEX(Table10[Date],1/(1/SUMPRODUCT((Table10[TrackN]=Table9[[#This Row],[TrackN]])*(Table10[Tag]=1)*(ROW(Table10[])-MIN(ROW(Table10[]))+1)))),\"\")","v":""},{"$f":"IFERROR(INDEX(Table10[Qty],1/(1/SUMPRODUCT((Table10[TrackN]=Table9[[#This Row],[TrackN]])*(Table10[Tag]=1)*(ROW(Table10[])-MIN(ROW(Table10[]))+1)))),\"\")","v":""},"Watson"]
[null,"A112",{"$f":"IFERROR(INDEX(Table10[Date],1/(1/SUMPRODUCT((Table10[TrackN]=Table9[[#This Row],[TrackN]])*(Table10[Tag]=1)*(ROW(Table10[])-MIN(ROW(Table10[]))+1)))),\"\")","v":""},{"$f":"IFERROR(INDEX(Table10[Qty],1/(1/SUMPRODUCT((Table10[TrackN]=Table9[[#This Row],[TrackN]])*(Table10[Tag]=1)*(ROW(Table10[])-MIN(ROW(Table10[]))+1)))),\"\")","v":""},"Hill"]
[null,"A113",{"$f":"IFERROR(INDEX(Table10[Date],1/(1/SUMPRODUCT((Table10[TrackN]=Table9[[#This Row],[TrackN]])*(Table10[Tag]=1)*(ROW(Table10[])-MIN(ROW(Table10[]))+1)))),\"\")","v":"2011-04-18"},{"$f":"IFERROR(INDEX(Table10[Qty],1/(1/SUMPRODUCT((Table10[TrackN]=Table9[[#This Row],[TrackN]])*(Table10[Tag]=1)*(ROW(Table10[])-MIN(ROW(Table10[]))+1)))),\"\")","v":23},"Ellis"]
[null,"A114",{"$f":"IFERROR(INDEX(Table10[Date],1/(1/SUMPRODUCT((Table10[TrackN]=Table9[[#This Row],[TrackN]])*(Table10[Tag]=1)*(ROW(Table10[])-MIN(ROW(Table10[]))+1)))),\"\")","v":""},{"$f":"IFERROR(INDEX(Table10[Qty],1/(1/SUMPRODUCT((Table10[TrackN]=Table9[[#This Row],[TrackN]])*(Table10[Tag]=1)*(ROW(Table10[])-MIN(ROW(Table10[]))+1)))),\"\")","v":""},"Baker"]
[null,"A115",{"$f":"IFERROR(INDEX(Table10[Date],1/(1/SUMPRODUCT((Table10[TrackN]=Table9[[#This Row],[TrackN]])*(Table10[Tag]=1)*(ROW(Table10[])-MIN(ROW(Table10[]))+1)))),\"\")","v":""},{"$f":"IFERROR(INDEX(Table10[Qty],1/(1/SUMPRODUCT((Table10[TrackN]=Table9[[#This Row],[TrackN]])*(Table10[Tag]=1)*(ROW(Table10[])-MIN(ROW(Table10[]))+1)))),\"\")","v":""},"Hill"]
[null,"A116",{"$f":"IFERROR(INDEX(Table10[Date],1/(1/SUMPRODUCT((Table10[TrackN]=Table9[[#This Row],[TrackN]])*(Table10[Tag]=1)*(ROW(Table10[])-MIN(ROW(Table10[]))+1)))),\"\")","v":""},{"$f":"IFERROR(INDEX(Table10[Qty],1/(1/SUMPRODUCT((Table10[TrackN]=Table9[[#This Row],[TrackN]])*(Table10[Tag]=1)*(ROW(Table10[])-MIN(ROW(Table10[]))+1)))),\"\")","v":""},"Lopez"]
[null,"A117",{"$f":"IFERROR(INDEX(Table10[Date],1/(1/SUMPRODUCT((Table10[TrackN]=Table9[[#This Row],[TrackN]])*(Table10[Tag]=1)*(ROW(Table10[])-MIN(ROW(Table10[]))+1)))),\"\")","v":""},{"$f":"IFERROR(INDEX(Table10[Qty],1/(1/SUMPRODUCT((Table10[TrackN]=Table9[[#This Row],[TrackN]])*(Table10[Tag]=1)*(ROW(Table10[])-MIN(ROW(Table10[]))+1)))),\"\")","v":""},"Long"]
[null,"A118",{"$f":"IFERROR(INDEX(Table10[Date],1/(1/SUMPRODUCT((Table10[TrackN]=Table9[[#This Row],[TrackN]])*(Table10[Tag]=1)*(ROW(Table10[])-MIN(ROW(Table10[]))+1)))),\"\")","v":""},{"$f":"IFERROR(INDEX(Table10[Qty],1/(1/SUMPRODUCT((Table10[TrackN]=Table9[[#This Row],[TrackN]])*(Table10[Tag]=1)*(ROW(Table10[])-MIN(ROW(Table10[]))+1)))),\"\")","v":""},"Mcdonald"]
[null,"A119",{"$f":"IFERROR(INDEX(Table10[Date],1/(1/SUMPRODUCT((Table10[TrackN]=Table9[[#This Row],[TrackN]])*(Table10[Tag]=1)*(ROW(Table10[])-MIN(ROW(Table10[]))+1)))),\"\")","v":""},{"$f":"IFERROR(INDEX(Table10[Qty],1/(1/SUMPRODUCT((Table10[TrackN]=Table9[[#This Row],[TrackN]])*(Table10[Tag]=1)*(ROW(Table10[])-MIN(ROW(Table10[]))+1)))),\"\")","v":""},"Griffin"]
[null,"A120",{"$f":"IFERROR(INDEX(Table10[Date],1/(1/SUMPRODUCT((Table10[TrackN]=Table9[[#This Row],[TrackN]])*(Table10[Tag]=1)*(ROW(Table10[])-MIN(ROW(Table10[]))+1)))),\"\")","v":""},{"$f":"IFERROR(INDEX(Table10[Qty],1/(1/SUMPRODUCT((Table10[TrackN]=Table9[[#This Row],[TrackN]])*(Table10[Tag]=1)*(ROW(Table10[])-MIN(ROW(Table10[]))+1)))),\"\")","v":""},"Hayes"]
[null,"A121",{"$f":"IFERROR(INDEX(Table10[Date],1/(1/SUMPRODUCT((Table10[TrackN]=Table9[[#This Row],[TrackN]])*(Table10[Tag]=1)*(ROW(Table10[])-MIN(ROW(Table10[]))+1)))),\"\")","v":"2011-03-29"},{"$f":"IFERROR(INDEX(Table10[Qty],1/(1/SUMPRODUCT((Table10[TrackN]=Table9[[#This Row],[TrackN]])*(Table10[Tag]=1)*(ROW(Table10[])-MIN(ROW(Table10[]))+1)))),\"\")","v":42},"Gonzalez"]
[null,"A122",{"$f":"IFERROR(INDEX(Table10[Date],1/(1/SUMPRODUCT((Table10[TrackN]=Table9[[#This Row],[TrackN]])*(Table10[Tag]=1)*(ROW(Table10[])-MIN(ROW(Table10[]))+1)))),\"\")","v":""},{"$f":"IFERROR(INDEX(Table10[Qty],1/(1/SUMPRODUCT((Table10[TrackN]=Table9[[#This Row],[TrackN]])*(Table10[Tag]=1)*(ROW(Table10[])-MIN(ROW(Table10[]))+1)))),\"\")","v":""},"Lee"]
[null,"A123",{"$f":"IFERROR(INDEX(Table10[Date],1/(1/SUMPRODUCT((Table10[TrackN]=Table9[[#This Row],[TrackN]])*(Table10[Tag]=1)*(ROW(Table10[])-MIN(ROW(Table10[]))+1)))),\"\")","v":""},{"$f":"IFERROR(INDEX(Table10[Qty],1/(1/SUMPRODUCT((Table10[TrackN]=Table9[[#This Row],[TrackN]])*(Table10[Tag]=1)*(ROW(Table10[])-MIN(ROW(Table10[]))+1)))),\"\")","v":""},"Alexander"]
[null,"A124",{"$f":"IFERROR(INDEX(Table10[Date],1/(1/SUMPRODUCT((Table10[TrackN]=Table9[[#This Row],[TrackN]])*(Table10[Tag]=1)*(ROW(Table10[])-MIN(ROW(Table10[]))+1)))),\"\")","v":""},{"$f":"IFERROR(INDEX(Table10[Qty],1/(1/SUMPRODUCT((Table10[TrackN]=Table9[[#This Row],[TrackN]])*(Table10[Tag]=1)*(ROW(Table10[])-MIN(ROW(Table10[]))+1)))),\"\")","v":""},"Cook"]
[null,"A125",{"$f":"IFERROR(INDEX(Table10[Date],1/(1/SUMPRODUCT((Table10[TrackN]=Table9[[#This Row],[TrackN]])*(Table10[Tag]=1)*(ROW(Table10[])-MIN(ROW(Table10[]))+1)))),\"\")","v":""},{"$f":"IFERROR(INDEX(Table10[Qty],1/(1/SUMPRODUCT((Table10[TrackN]=Table9[[#This Row],[TrackN]])*(Table10[Tag]=1)*(ROW(Table10[])-MIN(ROW(Table10[]))+1)))),\"\")","v":""},"Ramirez"]
[null,"A126",{"$f":"IFERROR(INDEX(Table10[Date],1/(1/SUMPRODUCT((Table10[TrackN]=Table9[[#This Row],[TrackN]])*(Table10[Tag]=1)*(ROW(Table10[])-MIN(ROW(Table10[]))+1)))),\"\")","v":""},{"$f":"IFERROR(INDEX(Table10[Qty],1/(1/SUMPRODUCT((Table10[TrackN]=Table9[[#This Row],[TrackN]])*(Table10[Tag]=1)*(ROW(Table10[])-MIN(ROW(Table10[]))+1)))),\"\")","v":""},"Perry"]
[null,"A127",{"$f":"IFERROR(INDEX(Table10[Date],1/(1/SUMPRODUCT((Table10[TrackN]=Table9[[#This Row],[TrackN]])*(Table10[Tag]=1)*(ROW(Table10[])-MIN(ROW(Table10[]))+1)))),\"\")","v":""},{"$f":"IFERROR(INDEX(Table10[Qty],1/(1/SUMPRODUCT((Table10[TrackN]=Table9[[#This Row],[TrackN]])*(Table10[Tag]=1)*(ROW(Table10[])-MIN(ROW(Table10[]))+1)))),\"\")","v":""},"Flores"]
[null,"A128",{"$f":"IFERROR(INDEX(Table10[Date],1/(1/SUMPRODUCT((Table10[TrackN]=Table9[[#This Row],[TrackN]])*(Table10[Tag]=1)*(ROW(Table10[])-MIN(ROW(Table10[]))+1)))),\"\")","v":""},{"$f":"IFERROR(INDEX(Table10[Qty],1/(1/SUMPRODUCT((Table10[TrackN]=Table9[[#This Row],[TrackN]])*(Table10[Tag]=1)*(ROW(Table10[])-MIN(ROW(Table10[]))+1)))),\"\")","v":""},"Smith"]
[null,"A129",{"$f":"IFERROR(INDEX(Table10[Date],1/(1/SUMPRODUCT((Table10[TrackN]=Table9[[#This Row],[TrackN]])*(Table10[Tag]=1)*(ROW(Table10[])-MIN(ROW(Table10[]))+1)))),\"\")","v":""},{"$f":"IFERROR(INDEX(Table10[Qty],1/(1/SUMPRODUCT((Table10[TrackN]=Table9[[#This Row],[TrackN]])*(Table10[Tag]=1)*(ROW(Table10[])-MIN(ROW(Table10[]))+1)))),\"\")","v":""},"Collins"]
[null,"A130",{"$f":"IFERROR(INDEX(Table10[Date],1/(1/SUMPRODUCT((Table10[TrackN]=Table9[[#This Row],[TrackN]])*(Table10[Tag]=1)*(ROW(Table10[])-MIN(ROW(Table10[]))+1)))),\"\")","v":""},{"$f":"IFERROR(INDEX(Table10[Qty],1/(1/SUMPRODUCT((Table10[TrackN]=Table9[[#This Row],[TrackN]])*(Table10[Tag]=1)*(ROW(Table10[])-MIN(ROW(Table10[]))+1)))),\"\")","v":""},"Murray"]
[null,"A131",{"$f":"IFERROR(INDEX(Table10[Date],1/(1/SUMPRODUCT((Table10[TrackN]=Table9[[#This Row],[TrackN]])*(Table10[Tag]=1)*(ROW(Table10[])-MIN(ROW(Table10[]))+1)))),\"\")","v":"2011-04-24"},{"$f":"IFERROR(INDEX(Table10[Qty],1/(1/SUMPRODUCT((Table10[TrackN]=Table9[[#This Row],[TrackN]])*(Table10[Tag]=1)*(ROW(Table10[])-MIN(ROW(Table10[]))+1)))),\"\")","v":83},"Garcia"]
[null,"A132",{"$f":"IFERROR(INDEX(Table10[Date],1/(1/SUMPRODUCT((Table10[TrackN]=Table9[[#This Row],[TrackN]])*(Table10[Tag]=1)*(ROW(Table10[])-MIN(ROW(Table10[]))+1)))),\"\")","v":""},{"$f":"IFERROR(INDEX(Table10[Qty],1/(1/SUMPRODUCT((Table10[TrackN]=Table9[[#This Row],[TrackN]])*(Table10[Tag]=1)*(ROW(Table10[])-MIN(ROW(Table10[]))+1)))),\"\")","v":""},"Fisher"]
[null,"A133",{"$f":"IFERROR(INDEX(Table10[Date],1/(1/SUMPRODUCT((Table10[TrackN]=Table9[[#This Row],[TrackN]])*(Table10[Tag]=1)*(ROW(Table10[])-MIN(ROW(Table10[]))+1)))),\"\")","v":""},{"$f":"IFERROR(INDEX(Table10[Qty],1/(1/SUMPRODUCT((Table10[TrackN]=Table9[[#This Row],[TrackN]])*(Table10[Tag]=1)*(ROW(Table10[])-MIN(ROW(Table10[]))+1)))),\"\")","v":""},"Miller"]
[null,"A134",{"$f":"IFERROR(INDEX(Table10[Date],1/(1/SUMPRODUCT((Table10[TrackN]=Table9[[#This Row],[TrackN]])*(Table10[Tag]=1)*(ROW(Table10[])-MIN(ROW(Table10[]))+1)))),\"\")","v":""},{"$f":"IFERROR(INDEX(Table10[Qty],1/(1/SUMPRODUCT((Table10[TrackN]=Table9[[#This Row],[TrackN]])*(Table10[Tag]=1)*(ROW(Table10[])-MIN(ROW(Table10[]))+1)))),\"\")","v":""},"Garcia"]
[null,"A135",{"$f":"IFERROR(INDEX(Table10[Date],1/(1/SUMPRODUCT((Table10[TrackN]=Table9[[#This Row],[TrackN]])*(Table10[Tag]=1)*(ROW(Table10[])-MIN(ROW(Table10[]))+1)))),\"\")","v":""},{"$f":"IFERROR(INDEX(Table10[Qty],1/(1/SUMPRODUCT((Table10[TrackN]=Table9[[#This Row],[TrackN]])*(Table10[Tag]=1)*(ROW(Table10[])-MIN(ROW(Table10[]))+1)))),\"\")","v":""},"Foster"]
[null,"A136",{"$f":"IFERROR(INDEX(Table10[Date],1/(1/SUMPRODUCT((Table10[TrackN]=Table9[[#This Row],[TrackN]])*(Table10[Tag]=1)*(ROW(Table10[])-MIN(ROW(Table10[]))+1)))),\"\")","v":""},{"$f":"IFERROR(INDEX(Table10[Qty],1/(1/SUMPRODUCT((Table10[TrackN]=Table9[[#This Row],[TrackN]])*(Table10[Tag]=1)*(ROW(Table10[])-MIN(ROW(Table10[]))+1)))),\"\")","v":""},"Reed"]
[null,"A137",{"$f":"IFERROR(INDEX(Table10[Date],1/(1/SUMPRODUCT((Table10[TrackN]=Table9[[#This Row],[TrackN]])*(Table10[Tag]=1)*(ROW(Table10[])-MIN(ROW(Table10[]))+1)))),\"\")","v":""},{"$f":"IFERROR(INDEX(Table10[Qty],1/(1/SUMPRODUCT((Table10[TrackN]=Table9[[#This Row],[TrackN]])*(Table10[Tag]=1)*(ROW(Table10[])-MIN(ROW(Table10[]))+1)))),\"\")","v":""},"Stevens"]
[null,"A138",{"$f":"IFERROR(INDEX(Table10[Date],1/(1/SUMPRODUCT((Table10[TrackN]=Table9[[#This Row],[TrackN]])*(Table10[Tag]=1)*(ROW(Table10[])-MIN(ROW(Table10[]))+1)))),\"\")","v":""},{"$f":"IFERROR(INDEX(Table10[Qty],1/(1/SUMPRODUCT((Table10[TrackN]=Table9[[#This Row],[TrackN]])*(Table10[Tag]=1)*(ROW(Table10[])-MIN(ROW(Table10[]))+1)))),\"\")","v":""},"Walker"]
[null,"A139",{"$f":"IFERROR(INDEX(Table10[Date],1/(1/SUMPRODUCT((Table10[TrackN]=Table9[[#This Row],[TrackN]])*(Table10[Tag]=1)*(ROW(Table10[])-MIN(ROW(Table10[]))+1)))),\"\")","v":""},{"$f":"IFERROR(INDEX(Table10[Qty],1/(1/SUMPRODUCT((Table10[TrackN]=Table9[[#This Row],[TrackN]])*(Table10[Tag]=1)*(ROW(Table10[])-MIN(ROW(Table10[]))+1)))),\"\")","v":""},"Kennedy"]
[null,"A140",{"$f":"IFERROR(INDEX(Table10[Date],1/(1/SUMPRODUCT((Table10[TrackN]=Table9[[#This Row],[TrackN]])*(Table10[Tag]=1)*(ROW(Table10[])-MIN(ROW(Table10[]))+1)))),\"\")","v":""},{"$f":"IFERROR(INDEX(Table10[Qty],1/(1/SUMPRODUCT((Table10[TrackN]=Table9[[#This Row],[TrackN]])*(Table10[Tag]=1)*(ROW(Table10[])-MIN(ROW(Table10[]))+1)))),\"\")","v":""},"Edwards"]
[null,"A141",{"$f":"IFERROR(INDEX(Table10[Date],1/(1/SUMPRODUCT((Table10[TrackN]=Table9[[#This Row],[TrackN]])*(Table10[Tag]=1)*(ROW(Table10[])-MIN(ROW(Table10[]))+1)))),\"\")","v":""},{"$f":"IFERROR(INDEX(Table10[Qty],1/(1/SUMPRODUCT((Table10[TrackN]=Table9[[#This Row],[TrackN]])*(Table10[Tag]=1)*(ROW(Table10[])-MIN(ROW(Table10[]))+1)))),\"\")","v":""},"Phillips"]
[null,"A142",{"$f":"IFERROR(INDEX(Table10[Date],1/(1/SUMPRODUCT((Table10[TrackN]=Table9[[#This Row],[TrackN]])*(Table10[Tag]=1)*(ROW(Table10[])-MIN(ROW(Table10[]))+1)))),\"\")","v":"2011-02-05"},{"$f":"IFERROR(INDEX(Table10[Qty],1/(1/SUMPRODUCT((Table10[TrackN]=Table9[[#This Row],[TrackN]])*(Table10[Tag]=1)*(ROW(Table10[])-MIN(ROW(Table10[]))+1)))),\"\")","v":29},"Scott"]
[null,"A143",{"$f":"IFERROR(INDEX(Table10[Date],1/(1/SUMPRODUCT((Table10[TrackN]=Table9[[#This Row],[TrackN]])*(Table10[Tag]=1)*(ROW(Table10[])-MIN(ROW(Table10[]))+1)))),\"\")","v":"2011-01-12"},{"$f":"IFERROR(INDEX(Table10[Qty],1/(1/SUMPRODUCT((Table10[TrackN]=Table9[[#This Row],[TrackN]])*(Table10[Tag]=1)*(ROW(Table10[])-MIN(ROW(Table10[]))+1)))),\"\")","v":61},"Sullivan"]
[null,"A144",{"$f":"IFERROR(INDEX(Table10[Date],1/(1/SUMPRODUCT((Table10[TrackN]=Table9[[#This Row],[TrackN]])*(Table10[Tag]=1)*(ROW(Table10[])-MIN(ROW(Table10[]))+1)))),\"\")","v":""},{"$f":"IFERROR(INDEX(Table10[Qty],1/(1/SUMPRODUCT((Table10[TrackN]=Table9[[#This Row],[TrackN]])*(Table10[Tag]=1)*(ROW(Table10[])-MIN(ROW(Table10[]))+1)))),\"\")","v":""},"Gonzalez"]
[null,"A145",{"$f":"IFERROR(INDEX(Table10[Date],1/(1/SUMPRODUCT((Table10[TrackN]=Table9[[#This Row],[TrackN]])*(Table10[Tag]=1)*(ROW(Table10[])-MIN(ROW(Table10[]))+1)))),\"\")","v":""},{"$f":"IFERROR(INDEX(Table10[Qty],1/(1/SUMPRODUCT((Table10[TrackN]=Table9[[#This Row],[TrackN]])*(Table10[Tag]=1)*(ROW(Table10[])-MIN(ROW(Table10[]))+1)))),\"\")","v":""},"Richardson"]
[null,"A146",{"$f":"IFERROR(INDEX(Table10[Date],1/(1/SUMPRODUCT((Table10[TrackN]=Table9[[#This Row],[TrackN]])*(Table10[Tag]=1)*(ROW(Table10[])-MIN(ROW(Table10[]))+1)))),\"\")","v":""},{"$f":"IFERROR(INDEX(Table10[Qty],1/(1/SUMPRODUCT((Table10[TrackN]=Table9[[#This Row],[TrackN]])*(Table10[Tag]=1)*(ROW(Table10[])-MIN(ROW(Table10[]))+1)))),\"\")","v":""},"Freeman"]
[null,"A147",{"$f":"IFERROR(INDEX(Table10[Date],1/(1/SUMPRODUCT((Table10[TrackN]=Table9[[#This Row],[TrackN]])*(Table10[Tag]=1)*(ROW(Table10[])-MIN(ROW(Table10[]))+1)))),\"\")","v":""},{"$f":"IFERROR(INDEX(Table10[Qty],1/(1/SUMPRODUCT((Table10[TrackN]=Table9[[#This Row],[TrackN]])*(Table10[Tag]=1)*(ROW(Table10[])-MIN(ROW(Table10[]))+1)))),\"\")","v":""},"Hicks"]
[null,"A148",{"$f":"IFERROR(INDEX(Table10[Date],1/(1/SUMPRODUCT((Table10[TrackN]=Table9[[#This Row],[TrackN]])*(Table10[Tag]=1)*(ROW(Table10[])-MIN(ROW(Table10[]))+1)))),\"\")","v":""},{"$f":"IFERROR(INDEX(Table10[Qty],1/(1/SUMPRODUCT((Table10[TrackN]=Table9[[#This Row],[TrackN]])*(Table10[Tag]=1)*(ROW(Table10[])-MIN(ROW(Table10[]))+1)))),\"\")","v":""},"Ross"]
[null,"A149",{"$f":"IFERROR(INDEX(Table10[Date],1/(1/SUMPRODUCT((Table10[TrackN]=Table9[[#This Row],[TrackN]])*(Table10[Tag]=1)*(ROW(Table10[])-MIN(ROW(Table10[]))+1)))),\"\")","v":"2011-02-09"},{"$f":"IFERROR(INDEX(Table10[Qty],1/(1/SUMPRODUCT((Table10[TrackN]=Table9[[#This Row],[TrackN]])*(Table10[Tag]=1)*(ROW(Table10[])-MIN(ROW(Table10[]))+1)))),\"\")","v":70},"Flores"]
[null,"A150",{"$f":"IFERROR(INDEX(Table10[Date],1/(1/SUMPRODUCT((Table10[TrackN]=Table9[[#This Row],[TrackN]])*(Table10[Tag]=1)*(ROW(Table10[])-MIN(ROW(Table10[]))+1)))),\"\")","v":""},{"$f":"IFERROR(INDEX(Table10[Qty],1/(1/SUMPRODUCT((Table10[TrackN]=Table9[[#This Row],[TrackN]])*(Table10[Tag]=1)*(ROW(Table10[])-MIN(ROW(Table10[]))+1)))),\"\")","v":""},"Marshall"]
[null,"A151",{"$f":"IFERROR(INDEX(Table10[Date],1/(1/SUMPRODUCT((Table10[TrackN]=Table9[[#This Row],[TrackN]])*(Table10[Tag]=1)*(ROW(Table10[])-MIN(ROW(Table10[]))+1)))),\"\")","v":""},{"$f":"IFERROR(INDEX(Table10[Qty],1/(1/SUMPRODUCT((Table10[TrackN]=Table9[[#This Row],[TrackN]])*(Table10[Tag]=1)*(ROW(Table10[])-MIN(ROW(Table10[]))+1)))),\"\")","v":""},"Freeman"]
[null,"A152",{"$f":"IFERROR(INDEX(Table10[Date],1/(1/SUMPRODUCT((Table10[TrackN]=Table9[[#This Row],[TrackN]])*(Table10[Tag]=1)*(ROW(Table10[])-MIN(ROW(Table10[]))+1)))),\"\")","v":""},{"$f":"IFERROR(INDEX(Table10[Qty],1/(1/SUMPRODUCT((Table10[TrackN]=Table9[[#This Row],[TrackN]])*(Table10[Tag]=1)*(ROW(Table10[])-MIN(ROW(Table10[]))+1)))),\"\")","v":""},"Murray"]
[null,"A153",{"$f":"IFERROR(INDEX(Table10[Date],1/(1/SUMPRODUCT((Table10[TrackN]=Table9[[#This Row],[TrackN]])*(Table10[Tag]=1)*(ROW(Table10[])-MIN(ROW(Table10[]))+1)))),\"\")","v":""},{"$f":"IFERROR(INDEX(Table10[Qty],1/(1/SUMPRODUCT((Table10[TrackN]=Table9[[#This Row],[TrackN]])*(Table10[Tag]=1)*(ROW(Table10[])-MIN(ROW(Table10[]))+1)))),\"\")","v":""},"Price"]
[null,"A154",{"$f":"IFERROR(INDEX(Table10[Date],1/(1/SUMPRODUCT((Table10[TrackN]=Table9[[#This Row],[TrackN]])*(Table10[Tag]=1)*(ROW(Table10[])-MIN(ROW(Table10[]))+1)))),\"\")","v":""},{"$f":"IFERROR(INDEX(Table10[Qty],1/(1/SUMPRODUCT((Table10[TrackN]=Table9[[#This Row],[TrackN]])*(Table10[Tag]=1)*(ROW(Table10[])-MIN(ROW(Table10[]))+1)))),\"\")","v":""},"Reynolds"]
[null,"A155",{"$f":"IFERROR(INDEX(Table10[Date],1/(1/SUMPRODUCT((Table10[TrackN]=Table9[[#This Row],[TrackN]])*(Table10[Tag]=1)*(ROW(Table10[])-MIN(ROW(Table10[]))+1)))),\"\")","v":""},{"$f":"IFERROR(INDEX(Table10[Qty],1/(1/SUMPRODUCT((Table10[TrackN]=Table9[[#This Row],[TrackN]])*(Table10[Tag]=1)*(ROW(Table10[])-MIN(ROW(Table10[]))+1)))),\"\")","v":""},"Ford"]
[null,"A156",{"$f":"IFERROR(INDEX(Table10[Date],1/(1/SUMPRODUCT((Table10[TrackN]=Table9[[#This Row],[TrackN]])*(Table10[Tag]=1)*(ROW(Table10[])-MIN(ROW(Table10[]))+1)))),\"\")","v":""},{"$f":"IFERROR(INDEX(Table10[Qty],1/(1/SUMPRODUCT((Table10[TrackN]=Table9[[#This Row],[TrackN]])*(Table10[Tag]=1)*(ROW(Table10[])-MIN(ROW(Table10[]))+1)))),\"\")","v":""},"Peterson"]
[null,"A157",{"$f":"IFERROR(INDEX(Table10[Date],1/(1/SUMPRODUCT((Table10[TrackN]=Table9[[#This Row],[TrackN]])*(Table10[Tag]=1)*(ROW(Table10[])-MIN(ROW(Table10[]))+1)))),\"\")","v":""},{"$f":"IFERROR(INDEX(Table10[Qty],1/(1/SUMPRODUCT((Table10[TrackN]=Table9[[#This Row],[TrackN]])*(Table10[Tag]=1)*(ROW(Table10[])-MIN(ROW(Table10[]))+1)))),\"\")","v":""},"Carter"]
[null,"A158",{"$f":"IFERROR(INDEX(Table10[Date],1/(1/SUMPRODUCT((Table10[TrackN]=Table9[[#This Row],[TrackN]])*(Table10[Tag]=1)*(ROW(Table10[])-MIN(ROW(Table10[]))+1)))),\"\")","v":""},{"$f":"IFERROR(INDEX(Table10[Qty],1/(1/SUMPRODUCT((Table10[TrackN]=Table9[[#This Row],[TrackN]])*(Table10[Tag]=1)*(ROW(Table10[])-MIN(ROW(Table10[]))+1)))),\"\")","v":""},"Bryant"]
[null,"A159",{"$f":"IFERROR(INDEX(Table10[Date],1/(1/SUMPRODUCT((Table10[TrackN]=Table9[[#This Row],[TrackN]])*(Table10[Tag]=1)*(ROW(Table10[])-MIN(ROW(Table10[]))+1)))),\"\")","v":""},{"$f":"IFERROR(INDEX(Table10[Qty],1/(1/SUMPRODUCT((Table10[TrackN]=Table9[[#This Row],[TrackN]])*(Table10[Tag]=1)*(ROW(Table10[])-MIN(ROW(Table10[]))+1)))),\"\")","v":""},"Gomez"]
[null,"A160",{"$f":"IFERROR(INDEX(Table10[Date],1/(1/SUMPRODUCT((Table10[TrackN]=Table9[[#This Row],[TrackN]])*(Table10[Tag]=1)*(ROW(Table10[])-MIN(ROW(Table10[]))+1)))),\"\")","v":""},{"$f":"IFERROR(INDEX(Table10[Qty],1/(1/SUMPRODUCT((Table10[TrackN]=Table9[[#This Row],[TrackN]])*(Table10[Tag]=1)*(ROW(Table10[])-MIN(ROW(Table10[]))+1)))),\"\")","v":""},"Mcdonald"]
[null,"A161",{"$f":"IFERROR(INDEX(Table10[Date],1/(1/SUMPRODUCT((Table10[TrackN]=Table9[[#This Row],[TrackN]])*(Table10[Tag]=1)*(ROW(Table10[])-MIN(ROW(Table10[]))+1)))),\"\")","v":""},{"$f":"IFERROR(INDEX(Table10[Qty],1/(1/SUMPRODUCT((Table10[TrackN]=Table9[[#This Row],[TrackN]])*(Table10[Tag]=1)*(ROW(Table10[])-MIN(ROW(Table10[]))+1)))),\"\")","v":""},"Adams"]
[null,"A162",{"$f":"IFERROR(INDEX(Table10[Date],1/(1/SUMPRODUCT((Table10[TrackN]=Table9[[#This Row],[TrackN]])*(Table10[Tag]=1)*(ROW(Table10[])-MIN(ROW(Table10[]))+1)))),\"\")","v":""},{"$f":"IFERROR(INDEX(Table10[Qty],1/(1/SUMPRODUCT((Table10[TrackN]=Table9[[#This Row],[TrackN]])*(Table10[Tag]=1)*(ROW(Table10[])-MIN(ROW(Table10[]))+1)))),\"\")","v":""},"Long"]
[null,"A163",{"$f":"IFERROR(INDEX(Table10[Date],1/(1/SUMPRODUCT((Table10[TrackN]=Table9[[#This Row],[TrackN]])*(Table10[Tag]=1)*(ROW(Table10[])-MIN(ROW(Table10[]))+1)))),\"\")","v":""},{"$f":"IFERROR(INDEX(Table10[Qty],1/(1/SUMPRODUCT((Table10[TrackN]=Table9[[#This Row],[TrackN]])*(Table10[Tag]=1)*(ROW(Table10[])-MIN(ROW(Table10[]))+1)))),\"\")","v":""},"Diaz"]
[null,"A164",{"$f":"IFERROR(INDEX(Table10[Date],1/(1/SUMPRODUCT((Table10[TrackN]=Table9[[#This Row],[TrackN]])*(Table10[Tag]=1)*(ROW(Table10[])-MIN(ROW(Table10[]))+1)))),\"\")","v":""},{"$f":"IFERROR(INDEX(Table10[Qty],1/(1/SUMPRODUCT((Table10[TrackN]=Table9[[#This Row],[TrackN]])*(Table10[Tag]=1)*(ROW(Table10[])-MIN(ROW(Table10[]))+1)))),\"\")","v":""},"Hamilton"]
[null,"A165",{"$f":"IFERROR(INDEX(Table10[Date],1/(1/SUMPRODUCT((Table10[TrackN]=Table9[[#This Row],[TrackN]])*(Table10[Tag]=1)*(ROW(Table10[])-MIN(ROW(Table10[]))+1)))),\"\")","v":""},{"$f":"IFERROR(INDEX(Table10[Qty],1/(1/SUMPRODUCT((Table10[TrackN]=Table9[[#This Row],[TrackN]])*(Table10[Tag]=1)*(ROW(Table10[])-MIN(ROW(Table10[]))+1)))),\"\")","v":""},"Wells"]
[null,"A166",{"$f":"IFERROR(INDEX(Table10[Date],1/(1/SUMPRODUCT((Table10[TrackN]=Table9[[#This Row],[TrackN]])*(Table10[Tag]=1)*(ROW(Table10[])-MIN(ROW(Table10[]))+1)))),\"\")","v":"2011-01-20"},{"$f":"IFERROR(INDEX(Table10[Qty],1/(1/SUMPRODUCT((Table10[TrackN]=Table9[[#This Row],[TrackN]])*(Table10[Tag]=1)*(ROW(Table10[])-MIN(ROW(Table10[]))+1)))),\"\")","v":42},"Hernandez"]
[null,"A167",{"$f":"IFERROR(INDEX(Table10[Date],1/(1/SUMPRODUCT((Table10[TrackN]=Table9[[#This Row],[TrackN]])*(Table10[Tag]=1)*(ROW(Table10[])-MIN(ROW(Table10[]))+1)))),\"\")","v":"2011-02-22"},{"$f":"IFERROR(INDEX(Table10[Qty],1/(1/SUMPRODUCT((Table10[TrackN]=Table9[[#This Row],[TrackN]])*(Table10[Tag]=1)*(ROW(Table10[])-MIN(ROW(Table10[]))+1)))),\"\")","v":58},"West"]
[null,"A168",{"$f":"IFERROR(INDEX(Table10[Date],1/(1/SUMPRODUCT((Table10[TrackN]=Table9[[#This Row],[TrackN]])*(Table10[Tag]=1)*(ROW(Table10[])-MIN(ROW(Table10[]))+1)))),\"\")","v":"2011-03-04"},{"$f":"IFERROR(INDEX(Table10[Qty],1/(1/SUMPRODUCT((Table10[TrackN]=Table9[[#This Row],[TrackN]])*(Table10[Tag]=1)*(ROW(Table10[])-MIN(ROW(Table10[]))+1)))),\"\")","v":57},"Mcdonald"]
[null,"A169",{"$f":"IFERROR(INDEX(Table10[Date],1/(1/SUMPRODUCT((Table10[TrackN]=Table9[[#This Row],[TrackN]])*(Table10[Tag]=1)*(ROW(Table10[])-MIN(ROW(Table10[]))+1)))),\"\")","v":""},{"$f":"IFERROR(INDEX(Table10[Qty],1/(1/SUMPRODUCT((Table10[TrackN]=Table9[[#This Row],[TrackN]])*(Table10[Tag]=1)*(ROW(Table10[])-MIN(ROW(Table10[]))+1)))),\"\")","v":""},"Henderson"]
[null,"A170",{"$f":"IFERROR(INDEX(Table10[Date],1/(1/SUMPRODUCT((Table10[TrackN]=Table9[[#This Row],[TrackN]])*(Table10[Tag]=1)*(ROW(Table10[])-MIN(ROW(Table10[]))+1)))),\"\")","v":""},{"$f":"IFERROR(INDEX(Table10[Qty],1/(1/SUMPRODUCT((Table10[TrackN]=Table9[[#This Row],[TrackN]])*(Table10[Tag]=1)*(ROW(Table10[])-MIN(ROW(Table10[]))+1)))),\"\")","v":""},"Brooks"]
[null,"A171",{"$f":"IFERROR(INDEX(Table10[Date],1/(1/SUMPRODUCT((Table10[TrackN]=Table9[[#This Row],[TrackN]])*(Table10[Tag]=1)*(ROW(Table10[])-MIN(ROW(Table10[]))+1)))),\"\")","v":""},{"$f":"IFERROR(INDEX(Table10[Qty],1/(1/SUMPRODUCT((Table10[TrackN]=Table9[[#This Row],[TrackN]])*(Table10[Tag]=1)*(ROW(Table10[])-MIN(ROW(Table10[]))+1)))),\"\")","v":""},"Sanders"]
[null,"A172",{"$f":"IFERROR(INDEX(Table10[Date],1/(1/SUMPRODUCT((Table10[TrackN]=Table9[[#This Row],[TrackN]])*(Table10[Tag]=1)*(ROW(Table10[])-MIN(ROW(Table10[]))+1)))),\"\")","v":""},{"$f":"IFERROR(INDEX(Table10[Qty],1/(1/SUMPRODUCT((Table10[TrackN]=Table9[[#This Row],[TrackN]])*(Table10[Tag]=1)*(ROW(Table10[])-MIN(ROW(Table10[]))+1)))),\"\")","v":""},"Foster"]
[null,"A173",{"$f":"IFERROR(INDEX(Table10[Date],1/(1/SUMPRODUCT((Table10[TrackN]=Table9[[#This Row],[TrackN]])*(Table10[Tag]=1)*(ROW(Table10[])-MIN(ROW(Table10[]))+1)))),\"\")","v":""},{"$f":"IFERROR(INDEX(Table10[Qty],1/(1/SUMPRODUCT((Table10[TrackN]=Table9[[#This Row],[TrackN]])*(Table10[Tag]=1)*(ROW(Table10[])-MIN(ROW(Table10[]))+1)))),\"\")","v":""},"Kelly"]
[null,"A174",{"$f":"IFERROR(INDEX(Table10[Date],1/(1/SUMPRODUCT((Table10[TrackN]=Table9[[#This Row],[TrackN]])*(Table10[Tag]=1)*(ROW(Table10[])-MIN(ROW(Table10[]))+1)))),\"\")","v":""},{"$f":"IFERROR(INDEX(Table10[Qty],1/(1/SUMPRODUCT((Table10[TrackN]=Table9[[#This Row],[TrackN]])*(Table10[Tag]=1)*(ROW(Table10[])-MIN(ROW(Table10[]))+1)))),\"\")","v":""},"Marshall"]
[null,"A175",{"$f":"IFERROR(INDEX(Table10[Date],1/(1/SUMPRODUCT((Table10[TrackN]=Table9[[#This Row],[TrackN]])*(Table10[Tag]=1)*(ROW(Table10[])-MIN(ROW(Table10[]))+1)))),\"\")","v":""},{"$f":"IFERROR(INDEX(Table10[Qty],1/(1/SUMPRODUCT((Table10[TrackN]=Table9[[#This Row],[TrackN]])*(Table10[Tag]=1)*(ROW(Table10[])-MIN(ROW(Table10[]))+1)))),\"\")","v":""},"Henry"]
[null,"A176",{"$f":"IFERROR(INDEX(Table10[Date],1/(1/SUMPRODUCT((Table10[TrackN]=Table9[[#This Row],[TrackN]])*(Table10[Tag]=1)*(ROW(Table10[])-MIN(ROW(Table10[]))+1)))),\"\")","v":""},{"$f":"IFERROR(INDEX(Table10[Qty],1/(1/SUMPRODUCT((Table10[TrackN]=Table9[[#This Row],[TrackN]])*(Table10[Tag]=1)*(ROW(Table10[])-MIN(ROW(Table10[]))+1)))),\"\")","v":""},"Campbell"]
[null,"A177",{"$f":"IFERROR(INDEX(Table10[Date],1/(1/SUMPRODUCT((Table10[TrackN]=Table9[[#This Row],[TrackN]])*(Table10[Tag]=1)*(ROW(Table10[])-MIN(ROW(Table10[]))+1)))),\"\")","v":"2011-03-05"},{"$f":"IFERROR(INDEX(Table10[Qty],1/(1/SUMPRODUCT((Table10[TrackN]=Table9[[#This Row],[TrackN]])*(Table10[Tag]=1)*(ROW(Table10[])-MIN(ROW(Table10[]))+1)))),\"\")","v":75},"Simmons"]
[null,"A178",{"$f":"IFERROR(INDEX(Table10[Date],1/(1/SUMPRODUCT((Table10[TrackN]=Table9[[#This Row],[TrackN]])*(Table10[Tag]=1)*(ROW(Table10[])-MIN(ROW(Table10[]))+1)))),\"\")","v":""},{"$f":"IFERROR(INDEX(Table10[Qty],1/(1/SUMPRODUCT((Table10[TrackN]=Table9[[#This Row],[TrackN]])*(Table10[Tag]=1)*(ROW(Table10[])-MIN(ROW(Table10[]))+1)))),\"\")","v":""},"Nelson"]
[null,"A179",{"$f":"IFERROR(INDEX(Table10[Date],1/(1/SUMPRODUCT((Table10[TrackN]=Table9[[#This Row],[TrackN]])*(Table10[Tag]=1)*(ROW(Table10[])-MIN(ROW(Table10[]))+1)))),\"\")","v":""},{"$f":"IFERROR(INDEX(Table10[Qty],1/(1/SUMPRODUCT((Table10[TrackN]=Table9[[#This Row],[TrackN]])*(Table10[Tag]=1)*(ROW(Table10[])-MIN(ROW(Table10[]))+1)))),\"\")","v":""},"Davis"]
[null,"A180",{"$f":"IFERROR(INDEX(Table10[Date],1/(1/SUMPRODUCT((Table10[TrackN]=Table9[[#This Row],[TrackN]])*(Table10[Tag]=1)*(ROW(Table10[])-MIN(ROW(Table10[]))+1)))),\"\")","v":""},{"$f":"IFERROR(INDEX(Table10[Qty],1/(1/SUMPRODUCT((Table10[TrackN]=Table9[[#This Row],[TrackN]])*(Table10[Tag]=1)*(ROW(Table10[])-MIN(ROW(Table10[]))+1)))),\"\")","v":""},"Jones"]
[null,"A181",{"$f":"IFERROR(INDEX(Table10[Date],1/(1/SUMPRODUCT((Table10[TrackN]=Table9[[#This Row],[TrackN]])*(Table10[Tag]=1)*(ROW(Table10[])-MIN(ROW(Table10[]))+1)))),\"\")","v":""},{"$f":"IFERROR(INDEX(Table10[Qty],1/(1/SUMPRODUCT((Table10[TrackN]=Table9[[#This Row],[TrackN]])*(Table10[Tag]=1)*(ROW(Table10[])-MIN(ROW(Table10[]))+1)))),\"\")","v":""},"Wright"]
[null,"A182",{"$f":"IFERROR(INDEX(Table10[Date],1/(1/SUMPRODUCT((Table10[TrackN]=Table9[[#This Row],[TrackN]])*(Table10[Tag]=1)*(ROW(Table10[])-MIN(ROW(Table10[]))+1)))),\"\")","v":""},{"$f":"IFERROR(INDEX(Table10[Qty],1/(1/SUMPRODUCT((Table10[TrackN]=Table9[[#This Row],[TrackN]])*(Table10[Tag]=1)*(ROW(Table10[])-MIN(ROW(Table10[]))+1)))),\"\")","v":""},"Reynolds"]
[null,"A183",{"$f":"IFERROR(INDEX(Table10[Date],1/(1/SUMPRODUCT((Table10[TrackN]=Table9[[#This Row],[TrackN]])*(Table10[Tag]=1)*(ROW(Table10[])-MIN(ROW(Table10[]))+1)))),\"\")","v":""},{"$f":"IFERROR(INDEX(Table10[Qty],1/(1/SUMPRODUCT((Table10[TrackN]=Table9[[#This Row],[TrackN]])*(Table10[Tag]=1)*(ROW(Table10[])-MIN(ROW(Table10[]))+1)))),\"\")","v":""},"Reed"]
[null,"A184",{"$f":"IFERROR(INDEX(Table10[Date],1/(1/SUMPRODUCT((Table10[TrackN]=Table9[[#This Row],[TrackN]])*(Table10[Tag]=1)*(ROW(Table10[])-MIN(ROW(Table10[]))+1)))),\"\")","v":""},{"$f":"IFERROR(INDEX(Table10[Qty],1/(1/SUMPRODUCT((Table10[TrackN]=Table9[[#This Row],[TrackN]])*(Table10[Tag]=1)*(ROW(Table10[])-MIN(ROW(Table10[]))+1)))),\"\")","v":""},"Cook"]
[null,"A185",{"$f":"IFERROR(INDEX(Table10[Date],1/(1/SUMPRODUCT((Table10[TrackN]=Table9[[#This Row],[TrackN]])*(Table10[Tag]=1)*(ROW(Table10[])-MIN(ROW(Table10[]))+1)))),\"\")","v":""},{"$f":"IFERROR(INDEX(Table10[Qty],1/(1/SUMPRODUCT((Table10[TrackN]=Table9[[#This Row],[TrackN]])*(Table10[Tag]=1)*(ROW(Table10[])-MIN(ROW(Table10[]))+1)))),\"\")","v":""},"Harrison"]
[null,"A186",{"$f":"IFERROR(INDEX(Table10[Date],1/(1/SUMPRODUCT((Table10[TrackN]=Table9[[#This Row],[TrackN]])*(Table10[Tag]=1)*(ROW(Table10[])-MIN(ROW(Table10[]))+1)))),\"\")","v":""},{"$f":"IFERROR(INDEX(Table10[Qty],1/(1/SUMPRODUCT((Table10[TrackN]=Table9[[#This Row],[TrackN]])*(Table10[Tag]=1)*(ROW(Table10[])-MIN(ROW(Table10[]))+1)))),\"\")","v":""},"Ramirez"]
[null,"A187",{"$f":"IFERROR(INDEX(Table10[Date],1/(1/SUMPRODUCT((Table10[TrackN]=Table9[[#This Row],[TrackN]])*(Table10[Tag]=1)*(ROW(Table10[])-MIN(ROW(Table10[]))+1)))),\"\")","v":""},{"$f":"IFERROR(INDEX(Table10[Qty],1/(1/SUMPRODUCT((Table10[TrackN]=Table9[[#This Row],[TrackN]])*(Table10[Tag]=1)*(ROW(Table10[])-MIN(ROW(Table10[]))+1)))),\"\")","v":""},"Stewart"]
[null,"A188",{"$f":"IFERROR(INDEX(Table10[Date],1/(1/SUMPRODUCT((Table10[TrackN]=Table9[[#This Row],[TrackN]])*(Table10[Tag]=1)*(ROW(Table10[])-MIN(ROW(Table10[]))+1)))),\"\")","v":""},{"$f":"IFERROR(INDEX(Table10[Qty],1/(1/SUMPRODUCT((Table10[TrackN]=Table9[[#This Row],[TrackN]])*(Table10[Tag]=1)*(ROW(Table10[])-MIN(ROW(Table10[]))+1)))),\"\")","v":""},"Sanchez"]
[null,"A189",{"$f":"IFERROR(INDEX(Table10[Date],1/(1/SUMPRODUCT((Table10[TrackN]=Table9[[#This Row],[TrackN]])*(Table10[Tag]=1)*(ROW(Table10[])-MIN(ROW(Table10[]))+1)))),\"\")","v":"2011-01-06"},{"$f":"IFERROR(INDEX(Table10[Qty],1/(1/SUMPRODUCT((Table10[TrackN]=Table9[[#This Row],[TrackN]])*(Table10[Tag]=1)*(ROW(Table10[])-MIN(ROW(Table10[]))+1)))),\"\")","v":10},"Thompson"]
[null,"A190",{"$f":"IFERROR(INDEX(Table10[Date],1/(1/SUMPRODUCT((Table10[TrackN]=Table9[[#This Row],[TrackN]])*(Table10[Tag]=1)*(ROW(Table10[])-MIN(ROW(Table10[]))+1)))),\"\")","v":"2011-04-28"},{"$f":"IFERROR(INDEX(Table10[Qty],1/(1/SUMPRODUCT((Table10[TrackN]=Table9[[#This Row],[TrackN]])*(Table10[Tag]=1)*(ROW(Table10[])-MIN(ROW(Table10[]))+1)))),\"\")","v":25},"Walker"]
[null,"A191",{"$f":"IFERROR(INDEX(Table10[Date],1/(1/SUMPRODUCT((Table10[TrackN]=Table9[[#This Row],[TrackN]])*(Table10[Tag]=1)*(ROW(Table10[])-MIN(ROW(Table10[]))+1)))),\"\")","v":""},{"$f":"IFERROR(INDEX(Table10[Qty],1/(1/SUMPRODUCT((Table10[TrackN]=Table9[[#This Row],[TrackN]])*(Table10[Tag]=1)*(ROW(Table10[])-MIN(ROW(Table10[]))+1)))),\"\")","v":""},"Jenkins"]
[null,"A192",{"$f":"IFERROR(INDEX(Table10[Date],1/(1/SUMPRODUCT((Table10[TrackN]=Table9[[#This Row],[TrackN]])*(Table10[Tag]=1)*(ROW(Table10[])-MIN(ROW(Table10[]))+1)))),\"\")","v":""},{"$f":"IFERROR(INDEX(Table10[Qty],1/(1/SUMPRODUCT((Table10[TrackN]=Table9[[#This Row],[TrackN]])*(Table10[Tag]=1)*(ROW(Table10[])-MIN(ROW(Table10[]))+1)))),\"\")","v":""},"Green"]
[null,"A193",{"$f":"IFERROR(INDEX(Table10[Date],1/(1/SUMPRODUCT((Table10[TrackN]=Table9[[#This Row],[TrackN]])*(Table10[Tag]=1)*(ROW(Table10[])-MIN(ROW(Table10[]))+1)))),\"\")","v":""},{"$f":"IFERROR(INDEX(Table10[Qty],1/(1/SUMPRODUCT((Table10[TrackN]=Table9[[#This Row],[TrackN]])*(Table10[Tag]=1)*(ROW(Table10[])-MIN(ROW(Table10[]))+1)))),\"\")","v":""},"Young"]
[null,"A194",{"$f":"IFERROR(INDEX(Table10[Date],1/(1/SUMPRODUCT((Table10[TrackN]=Table9[[#This Row],[TrackN]])*(Table10[Tag]=1)*(ROW(Table10[])-MIN(ROW(Table10[]))+1)))),\"\")","v":""},{"$f":"IFERROR(INDEX(Table10[Qty],1/(1/SUMPRODUCT((Table10[TrackN]=Table9[[#This Row],[TrackN]])*(Table10[Tag]=1)*(ROW(Table10[])-MIN(ROW(Table10[]))+1)))),\"\")","v":""},"Henry"]
[null,"A195",{"$f":"IFERROR(INDEX(Table10[Date],1/(1/SUMPRODUCT((Table10[TrackN]=Table9[[#This Row],[TrackN]])*(Table10[Tag]=1)*(ROW(Table10[])-MIN(ROW(Table10[]))+1)))),\"\")","v":""},{"$f":"IFERROR(INDEX(Table10[Qty],1/(1/SUMPRODUCT((Table10[TrackN]=Table9[[#This Row],[TrackN]])*(Table10[Tag]=1)*(ROW(Table10[])-MIN(ROW(Table10[]))+1)))),\"\")","v":""},"Fisher"]
[null,"A196",{"$f":"IFERROR(INDEX(Table10[Date],1/(1/SUMPRODUCT((Table10[TrackN]=Table9[[#This Row],[TrackN]])*(Table10[Tag]=1)*(ROW(Table10[])-MIN(ROW(Table10[]))+1)))),\"\")","v":""},{"$f":"IFERROR(INDEX(Table10[Qty],1/(1/SUMPRODUCT((Table10[TrackN]=Table9[[#This Row],[TrackN]])*(Table10[Tag]=1)*(ROW(Table10[])-MIN(ROW(Table10[]))+1)))),\"\")","v":""},"Gibson"]
[null,"A197",{"$f":"IFERROR(INDEX(Table10[Date],1/(1/SUMPRODUCT((Table10[TrackN]=Table9[[#This Row],[TrackN]])*(Table10[Tag]=1)*(ROW(Table10[])-MIN(ROW(Table10[]))+1)))),\"\")","v":""},{"$f":"IFERROR(INDEX(Table10[Qty],1/(1/SUMPRODUCT((Table10[TrackN]=Table9[[#This Row],[TrackN]])*(Table10[Tag]=1)*(ROW(Table10[])-MIN(ROW(Table10[]))+1)))),\"\")","v":""},"Baker"]
[null,"A198",{"$f":"IFERROR(INDEX(Table10[Date],1/(1/SUMPRODUCT((Table10[TrackN]=Table9[[#This Row],[TrackN]])*(Table10[Tag]=1)*(ROW(Table10[])-MIN(ROW(Table10[]))+1)))),\"\")","v":""},{"$f":"IFERROR(INDEX(Table10[Qty],1/(1/SUMPRODUCT((Table10[TrackN]=Table9[[#This Row],[TrackN]])*(Table10[Tag]=1)*(ROW(Table10[])-MIN(ROW(Table10[]))+1)))),\"\")","v":""},"Harris"]
[null,"A199",{"$f":"IFERROR(INDEX(Table10[Date],1/(1/SUMPRODUCT((Table10[TrackN]=Table9[[#This Row],[TrackN]])*(Table10[Tag]=1)*(ROW(Table10[])-MIN(ROW(Table10[]))+1)))),\"\")","v":""},{"$f":"IFERROR(INDEX(Table10[Qty],1/(1/SUMPRODUCT((Table10[TrackN]=Table9[[#This Row],[TrackN]])*(Table10[Tag]=1)*(ROW(Table10[])-MIN(ROW(Table10[]))+1)))),\"\")","v":""},"Hall"]
[null,"A200",{"$f":"IFERROR(INDEX(Table10[Date],1/(1/SUMPRODUCT((Table10[TrackN]=Table9[[#This Row],[TrackN]])*(Table10[Tag]=1)*(ROW(Table10[])-MIN(ROW(Table10[]))+1)))),\"\")","v":""},{"$f":"IFERROR(INDEX(Table10[Qty],1/(1/SUMPRODUCT((Table10[TrackN]=Table9[[#This Row],[TrackN]])*(Table10[Tag]=1)*(ROW(Table10[])-MIN(ROW(Table10[]))+1)))),\"\")","v":""},"Clark"]
[null,"A201",{"$f":"IFERROR(INDEX(Table10[Date],1/(1/SUMPRODUCT((Table10[TrackN]=Table9[[#This Row],[TrackN]])*(Table10[Tag]=1)*(ROW(Table10[])-MIN(ROW(Table10[]))+1)))),\"\")","v":""},{"$f":"IFERROR(INDEX(Table10[Qty],1/(1/SUMPRODUCT((Table10[TrackN]=Table9[[#This Row],[TrackN]])*(Table10[Tag]=1)*(ROW(Table10[])-MIN(ROW(Table10[]))+1)))),\"\")","v":""},"Howard"]
[null,"A202",{"$f":"IFERROR(INDEX(Table10[Date],1/(1/SUMPRODUCT((Table10[TrackN]=Table9[[#This Row],[TrackN]])*(Table10[Tag]=1)*(ROW(Table10[])-MIN(ROW(Table10[]))+1)))),\"\")","v":""},{"$f":"IFERROR(INDEX(Table10[Qty],1/(1/SUMPRODUCT((Table10[TrackN]=Table9[[#This Row],[TrackN]])*(Table10[Tag]=1)*(ROW(Table10[])-MIN(ROW(Table10[]))+1)))),\"\")","v":""},"Sanders"]
[null,"A203",{"$f":"IFERROR(INDEX(Table10[Date],1/(1/SUMPRODUCT((Table10[TrackN]=Table9[[#This Row],[TrackN]])*(Table10[Tag]=1)*(ROW(Table10[])-MIN(ROW(Table10[]))+1)))),\"\")","v":""},{"$f":"IFERROR(INDEX(Table10[Qty],1/(1/SUMPRODUCT((Table10[TrackN]=Table9[[#This Row],[TrackN]])*(Table10[Tag]=1)*(ROW(Table10[])-MIN(ROW(Table10[]))+1)))),\"\")","v":""},"Torres"]
[null,"A204",{"$f":"IFERROR(INDEX(Table10[Date],1/(1/SUMPRODUCT((Table10[TrackN]=Table9[[#This Row],[TrackN]])*(Table10[Tag]=1)*(ROW(Table10[])-MIN(ROW(Table10[]))+1)))),\"\")","v":""},{"$f":"IFERROR(INDEX(Table10[Qty],1/(1/SUMPRODUCT((Table10[TrackN]=Table9[[#This Row],[TrackN]])*(Table10[Tag]=1)*(ROW(Table10[])-MIN(ROW(Table10[]))+1)))),\"\")","v":""},"Boyd"]
[null,"A205",{"$f":"IFERROR(INDEX(Table10[Date],1/(1/SUMPRODUCT((Table10[TrackN]=Table9[[#This Row],[TrackN]])*(Table10[Tag]=1)*(ROW(Table10[])-MIN(ROW(Table10[]))+1)))),\"\")","v":""},{"$f":"IFERROR(INDEX(Table10[Qty],1/(1/SUMPRODUCT((Table10[TrackN]=Table9[[#This Row],[TrackN]])*(Table10[Tag]=1)*(ROW(Table10[])-MIN(ROW(Table10[]))+1)))),\"\")","v":""},"Bennett"]
[null,"A206",{"$f":"IFERROR(INDEX(Table10[Date],1/(1/SUMPRODUCT((Table10[TrackN]=Table9[[#This Row],[TrackN]])*(Table10[Tag]=1)*(ROW(Table10[])-MIN(ROW(Table10[]))+1)))),\"\")","v":""},{"$f":"IFERROR(INDEX(Table10[Qty],1/(1/SUMPRODUCT((Table10[TrackN]=Table9[[#This Row],[TrackN]])*(Table10[Tag]=1)*(ROW(Table10[])-MIN(ROW(Table10[]))+1)))),\"\")","v":""},"Simpson"]
[null,"A207",{"$f":"IFERROR(INDEX(Table10[Date],1/(1/SUMPRODUCT((Table10[TrackN]=Table9[[#This Row],[TrackN]])*(Table10[Tag]=1)*(ROW(Table10[])-MIN(ROW(Table10[]))+1)))),\"\")","v":"2011-03-06"},{"$f":"IFERROR(INDEX(Table10[Qty],1/(1/SUMPRODUCT((Table10[TrackN]=Table9[[#This Row],[TrackN]])*(Table10[Tag]=1)*(ROW(Table10[])-MIN(ROW(Table10[]))+1)))),\"\")","v":24},"Nelson"]
[null,"A208",{"$f":"IFERROR(INDEX(Table10[Date],1/(1/SUMPRODUCT((Table10[TrackN]=Table9[[#This Row],[TrackN]])*(Table10[Tag]=1)*(ROW(Table10[])-MIN(ROW(Table10[]))+1)))),\"\")","v":""},{"$f":"IFERROR(INDEX(Table10[Qty],1/(1/SUMPRODUCT((Table10[TrackN]=Table9[[#This Row],[TrackN]])*(Table10[Tag]=1)*(ROW(Table10[])-MIN(ROW(Table10[]))+1)))),\"\")","v":""},"James"]
[null,"A209",{"$f":"IFERROR(INDEX(Table10[Date],1/(1/SUMPRODUCT((Table10[TrackN]=Table9[[#This Row],[TrackN]])*(Table10[Tag]=1)*(ROW(Table10[])-MIN(ROW(Table10[]))+1)))),\"\")","v":""},{"$f":"IFERROR(INDEX(Table10[Qty],1/(1/SUMPRODUCT((Table10[TrackN]=Table9[[#This Row],[TrackN]])*(Table10[Tag]=1)*(ROW(Table10[])-MIN(ROW(Table10[]))+1)))),\"\")","v":""},"Henderson"]
[null,"A210",{"$f":"IFERROR(INDEX(Table10[Date],1/(1/SUMPRODUCT((Table10[TrackN]=Table9[[#This Row],[TrackN]])*(Table10[Tag]=1)*(ROW(Table10[])-MIN(ROW(Table10[]))+1)))),\"\")","v":"2011-04-05"},{"$f":"IFERROR(INDEX(Table10[Qty],1/(1/SUMPRODUCT((Table10[TrackN]=Table9[[#This Row],[TrackN]])*(Table10[Tag]=1)*(ROW(Table10[])-MIN(ROW(Table10[]))+1)))),\"\")","v":34},"Rogers"]
[null,"A211",{"$f":"IFERROR(INDEX(Table10[Date],1/(1/SUMPRODUCT((Table10[TrackN]=Table9[[#This Row],[TrackN]])*(Table10[Tag]=1)*(ROW(Table10[])-MIN(ROW(Table10[]))+1)))),\"\")","v":""},{"$f":"IFERROR(INDEX(Table10[Qty],1/(1/SUMPRODUCT((Table10[TrackN]=Table9[[#This Row],[TrackN]])*(Table10[Tag]=1)*(ROW(Table10[])-MIN(ROW(Table10[]))+1)))),\"\")","v":""},"Turner"]
[null,"A212",{"$f":"IFERROR(INDEX(Table10[Date],1/(1/SUMPRODUCT((Table10[TrackN]=Table9[[#This Row],[TrackN]])*(Table10[Tag]=1)*(ROW(Table10[])-MIN(ROW(Table10[]))+1)))),\"\")","v":""},{"$f":"IFERROR(INDEX(Table10[Qty],1/(1/SUMPRODUCT((Table10[TrackN]=Table9[[#This Row],[TrackN]])*(Table10[Tag]=1)*(ROW(Table10[])-MIN(ROW(Table10[]))+1)))),\"\")","v":""},"Torres"]
[null,"A213",{"$f":"IFERROR(INDEX(Table10[Date],1/(1/SUMPRODUCT((Table10[TrackN]=Table9[[#This Row],[TrackN]])*(Table10[Tag]=1)*(ROW(Table10[])-MIN(ROW(Table10[]))+1)))),\"\")","v":""},{"$f":"IFERROR(INDEX(Table10[Qty],1/(1/SUMPRODUCT((Table10[TrackN]=Table9[[#This Row],[TrackN]])*(Table10[Tag]=1)*(ROW(Table10[])-MIN(ROW(Table10[]))+1)))),\"\")","v":""},"Ortiz"]
[null,"A214",{"$f":"IFERROR(INDEX(Table10[Date],1/(1/SUMPRODUCT((Table10[TrackN]=Table9[[#This Row],[TrackN]])*(Table10[Tag]=1)*(ROW(Table10[])-MIN(ROW(Table10[]))+1)))),\"\")","v":""},{"$f":"IFERROR(INDEX(Table10[Qty],1/(1/SUMPRODUCT((Table10[TrackN]=Table9[[#This Row],[TrackN]])*(Table10[Tag]=1)*(ROW(Table10[])-MIN(ROW(Table10[]))+1)))),\"\")","v":""},"Gray"]
[null,"A215",{"$f":"IFERROR(INDEX(Table10[Date],1/(1/SUMPRODUCT((Table10[TrackN]=Table9[[#This Row],[TrackN]])*(Table10[Tag]=1)*(ROW(Table10[])-MIN(ROW(Table10[]))+1)))),\"\")","v":""},{"$f":"IFERROR(INDEX(Table10[Qty],1/(1/SUMPRODUCT((Table10[TrackN]=Table9[[#This Row],[TrackN]])*(Table10[Tag]=1)*(ROW(Table10[])-MIN(ROW(Table10[]))+1)))),\"\")","v":""},"Evans"]
[null,"A216",{"$f":"IFERROR(INDEX(Table10[Date],1/(1/SUMPRODUCT((Table10[TrackN]=Table9[[#This Row],[TrackN]])*(Table10[Tag]=1)*(ROW(Table10[])-MIN(ROW(Table10[]))+1)))),\"\")","v":""},{"$f":"IFERROR(INDEX(Table10[Qty],1/(1/SUMPRODUCT((Table10[TrackN]=Table9[[#This Row],[TrackN]])*(Table10[Tag]=1)*(ROW(Table10[])-MIN(ROW(Table10[]))+1)))),\"\")","v":""},"Lopez"]
[null,"A217",{"$f":"IFERROR(INDEX(Table10[Date],1/(1/SUMPRODUCT((Table10[TrackN]=Table9[[#This Row],[TrackN]])*(Table10[Tag]=1)*(ROW(Table10[])-MIN(ROW(Table10[]))+1)))),\"\")","v":""},{"$f":"IFERROR(INDEX(Table10[Qty],1/(1/SUMPRODUCT((Table10[TrackN]=Table9[[#This Row],[TrackN]])*(Table10[Tag]=1)*(ROW(Table10[])-MIN(ROW(Table10[]))+1)))),\"\")","v":""},"Bell"]
[null,"A218",{"$f":"IFERROR(INDEX(Table10[Date],1/(1/SUMPRODUCT((Table10[TrackN]=Table9[[#This Row],[TrackN]])*(Table10[Tag]=1)*(ROW(Table10[])-MIN(ROW(Table10[]))+1)))),\"\")","v":""},{"$f":"IFERROR(INDEX(Table10[Qty],1/(1/SUMPRODUCT((Table10[TrackN]=Table9[[#This Row],[TrackN]])*(Table10[Tag]=1)*(ROW(Table10[])-MIN(ROW(Table10[]))+1)))),\"\")","v":""},"Evans"]
[null,"A219",{"$f":"IFERROR(INDEX(Table10[Date],1/(1/SUMPRODUCT((Table10[TrackN]=Table9[[#This Row],[TrackN]])*(Table10[Tag]=1)*(ROW(Table10[])-MIN(ROW(Table10[]))+1)))),\"\")","v":""},{"$f":"IFERROR(INDEX(Table10[Qty],1/(1/SUMPRODUCT((Table10[TrackN]=Table9[[#This Row],[TrackN]])*(Table10[Tag]=1)*(ROW(Table10[])-MIN(ROW(Table10[]))+1)))),\"\")","v":""},"Long"]
[null,"A220",{"$f":"IFERROR(INDEX(Table10[Date],1/(1/SUMPRODUCT((Table10[TrackN]=Table9[[#This Row],[TrackN]])*(Table10[Tag]=1)*(ROW(Table10[])-MIN(ROW(Table10[]))+1)))),\"\")","v":""},{"$f":"IFERROR(INDEX(Table10[Qty],1/(1/SUMPRODUCT((Table10[TrackN]=Table9[[#This Row],[TrackN]])*(Table10[Tag]=1)*(ROW(Table10[])-MIN(ROW(Table10[]))+1)))),\"\")","v":""},"Thomas"]
[null,"A221",{"$f":"IFERROR(INDEX(Table10[Date],1/(1/SUMPRODUCT((Table10[TrackN]=Table9[[#This Row],[TrackN]])*(Table10[Tag]=1)*(ROW(Table10[])-MIN(ROW(Table10[]))+1)))),\"\")","v":""},{"$f":"IFERROR(INDEX(Table10[Qty],1/(1/SUMPRODUCT((Table10[TrackN]=Table9[[#This Row],[TrackN]])*(Table10[Tag]=1)*(ROW(Table10[])-MIN(ROW(Table10[]))+1)))),\"\")","v":""},"Lewis"]
[null,"A222",{"$f":"IFERROR(INDEX(Table10[Date],1/(1/SUMPRODUCT((Table10[TrackN]=Table9[[#This Row],[TrackN]])*(Table10[Tag]=1)*(ROW(Table10[])-MIN(ROW(Table10[]))+1)))),\"\")","v":""},{"$f":"IFERROR(INDEX(Table10[Qty],1/(1/SUMPRODUCT((Table10[TrackN]=Table9[[#This Row],[TrackN]])*(Table10[Tag]=1)*(ROW(Table10[])-MIN(ROW(Table10[]))+1)))),\"\")","v":""},"Morales"]
[null,"A223",{"$f":"IFERROR(INDEX(Table10[Date],1/(1/SUMPRODUCT((Table10[TrackN]=Table9[[#This Row],[TrackN]])*(Table10[Tag]=1)*(ROW(Table10[])-MIN(ROW(Table10[]))+1)))),\"\")","v":""},{"$f":"IFERROR(INDEX(Table10[Qty],1/(1/SUMPRODUCT((Table10[TrackN]=Table9[[#This Row],[TrackN]])*(Table10[Tag]=1)*(ROW(Table10[])-MIN(ROW(Table10[]))+1)))),\"\")","v":""},"Martinez"]
[null,"A224",{"$f":"IFERROR(INDEX(Table10[Date],1/(1/SUMPRODUCT((Table10[TrackN]=Table9[[#This Row],[TrackN]])*(Table10[Tag]=1)*(ROW(Table10[])-MIN(ROW(Table10[]))+1)))),\"\")","v":""},{"$f":"IFERROR(INDEX(Table10[Qty],1/(1/SUMPRODUCT((Table10[TrackN]=Table9[[#This Row],[TrackN]])*(Table10[Tag]=1)*(ROW(Table10[])-MIN(ROW(Table10[]))+1)))),\"\")","v":""},"King"]
[null,"A225",{"$f":"IFERROR(INDEX(Table10[Date],1/(1/SUMPRODUCT((Table10[TrackN]=Table9[[#This Row],[TrackN]])*(Table10[Tag]=1)*(ROW(Table10[])-MIN(ROW(Table10[]))+1)))),\"\")","v":"2011-04-04"},{"$f":"IFERROR(INDEX(Table10[Qty],1/(1/SUMPRODUCT((Table10[TrackN]=Table9[[#This Row],[TrackN]])*(Table10[Tag]=1)*(ROW(Table10[])-MIN(ROW(Table10[]))+1)))),\"\")","v":64},"Taylor"]
[null,"A226",{"$f":"IFERROR(INDEX(Table10[Date],1/(1/SUMPRODUCT((Table10[TrackN]=Table9[[#This Row],[TrackN]])*(Table10[Tag]=1)*(ROW(Table10[])-MIN(ROW(Table10[]))+1)))),\"\")","v":""},{"$f":"IFERROR(INDEX(Table10[Qty],1/(1/SUMPRODUCT((Table10[TrackN]=Table9[[#This Row],[TrackN]])*(Table10[Tag]=1)*(ROW(Table10[])-MIN(ROW(Table10[]))+1)))),\"\")","v":""},"Phillips"]
[null,"A227",{"$f":"IFERROR(INDEX(Table10[Date],1/(1/SUMPRODUCT((Table10[TrackN]=Table9[[#This Row],[TrackN]])*(Table10[Tag]=1)*(ROW(Table10[])-MIN(ROW(Table10[]))+1)))),\"\")","v":""},{"$f":"IFERROR(INDEX(Table10[Qty],1/(1/SUMPRODUCT((Table10[TrackN]=Table9[[#This Row],[TrackN]])*(Table10[Tag]=1)*(ROW(Table10[])-MIN(ROW(Table10[]))+1)))),\"\")","v":""},"West"]
[null,"A228",{"$f":"IFERROR(INDEX(Table10[Date],1/(1/SUMPRODUCT((Table10[TrackN]=Table9[[#This Row],[TrackN]])*(Table10[Tag]=1)*(ROW(Table10[])-MIN(ROW(Table10[]))+1)))),\"\")","v":"2011-03-28"},{"$f":"IFERROR(INDEX(Table10[Qty],1/(1/SUMPRODUCT((Table10[TrackN]=Table9[[#This Row],[TrackN]])*(Table10[Tag]=1)*(ROW(Table10[])-MIN(ROW(Table10[]))+1)))),\"\")","v":43},"Jenkins"]
[null,"A229",{"$f":"IFERROR(INDEX(Table10[Date],1/(1/SUMPRODUCT((Table10[TrackN]=Table9[[#This Row],[TrackN]])*(Table10[Tag]=1)*(ROW(Table10[])-MIN(ROW(Table10[]))+1)))),\"\")","v":""},{"$f":"IFERROR(INDEX(Table10[Qty],1/(1/SUMPRODUCT((Table10[TrackN]=Table9[[#This Row],[TrackN]])*(Table10[Tag]=1)*(ROW(Table10[])-MIN(ROW(Table10[]))+1)))),\"\")","v":""},"Cooper"]
[null,"A230",{"$f":"IFERROR(INDEX(Table10[Date],1/(1/SUMPRODUCT((Table10[TrackN]=Table9[[#This Row],[TrackN]])*(Table10[Tag]=1)*(ROW(Table10[])-MIN(ROW(Table10[]))+1)))),\"\")","v":""},{"$f":"IFERROR(INDEX(Table10[Qty],1/(1/SUMPRODUCT((Table10[TrackN]=Table9[[#This Row],[TrackN]])*(Table10[Tag]=1)*(ROW(Table10[])-MIN(ROW(Table10[]))+1)))),\"\")","v":""},"Ramirez"]
[null,"A231",{"$f":"IFERROR(INDEX(Table10[Date],1/(1/SUMPRODUCT((Table10[TrackN]=Table9[[#This Row],[TrackN]])*(Table10[Tag]=1)*(ROW(Table10[])-MIN(ROW(Table10[]))+1)))),\"\")","v":""},{"$f":"IFERROR(INDEX(Table10[Qty],1/(1/SUMPRODUCT((Table10[TrackN]=Table9[[#This Row],[TrackN]])*(Table10[Tag]=1)*(ROW(Table10[])-MIN(ROW(Table10[]))+1)))),\"\")","v":""},"Gonzalez"]
[null,"A232",{"$f":"IFERROR(INDEX(Table10[Date],1/(1/SUMPRODUCT((Table10[TrackN]=Table9[[#This Row],[TrackN]])*(Table10[Tag]=1)*(ROW(Table10[])-MIN(ROW(Table10[]))+1)))),\"\")","v":""},{"$f":"IFERROR(INDEX(Table10[Qty],1/(1/SUMPRODUCT((Table10[TrackN]=Table9[[#This Row],[TrackN]])*(Table10[Tag]=1)*(ROW(Table10[])-MIN(ROW(Table10[]))+1)))),\"\")","v":""},"Tucker"]
[null,"A233",{"$f":"IFERROR(INDEX(Table10[Date],1/(1/SUMPRODUCT((Table10[TrackN]=Table9[[#This Row],[TrackN]])*(Table10[Tag]=1)*(ROW(Table10[])-MIN(ROW(Table10[]))+1)))),\"\")","v":""},{"$f":"IFERROR(INDEX(Table10[Qty],1/(1/SUMPRODUCT((Table10[TrackN]=Table9[[#This Row],[TrackN]])*(Table10[Tag]=1)*(ROW(Table10[])-MIN(ROW(Table10[]))+1)))),\"\")","v":""},"Thomas"]
[null,"A234",{"$f":"IFERROR(INDEX(Table10[Date],1/(1/SUMPRODUCT((Table10[TrackN]=Table9[[#This Row],[TrackN]])*(Table10[Tag]=1)*(ROW(Table10[])-MIN(ROW(Table10[]))+1)))),\"\")","v":""},{"$f":"IFERROR(INDEX(Table10[Qty],1/(1/SUMPRODUCT((Table10[TrackN]=Table9[[#This Row],[TrackN]])*(Table10[Tag]=1)*(ROW(Table10[])-MIN(ROW(Table10[]))+1)))),\"\")","v":""},"Harris"]
[null,"A235",{"$f":"IFERROR(INDEX(Table10[Date],1/(1/SUMPRODUCT((Table10[TrackN]=Table9[[#This Row],[TrackN]])*(Table10[Tag]=1)*(ROW(Table10[])-MIN(ROW(Table10[]))+1)))),\"\")","v":""},{"$f":"IFERROR(INDEX(Table10[Qty],1/(1/SUMPRODUCT((Table10[TrackN]=Table9[[#This Row],[TrackN]])*(Table10[Tag]=1)*(ROW(Table10[])-MIN(ROW(Table10[]))+1)))),\"\")","v":""},"Torres"]
[null,"A236",{"$f":"IFERROR(INDEX(Table10[Date],1/(1/SUMPRODUCT((Table10[TrackN]=Table9[[#This Row],[TrackN]])*(Table10[Tag]=1)*(ROW(Table10[])-MIN(ROW(Table10[]))+1)))),\"\")","v":""},{"$f":"IFERROR(INDEX(Table10[Qty],1/(1/SUMPRODUCT((Table10[TrackN]=Table9[[#This Row],[TrackN]])*(Table10[Tag]=1)*(ROW(Table10[])-MIN(ROW(Table10[]))+1)))),\"\")","v":""},"Nelson"]
[null,"A237",{"$f":"IFERROR(INDEX(Table10[Date],1/(1/SUMPRODUCT((Table10[TrackN]=Table9[[#This Row],[TrackN]])*(Table10[Tag]=1)*(ROW(Table10[])-MIN(ROW(Table10[]))+1)))),\"\")","v":""},{"$f":"IFERROR(INDEX(Table10[Qty],1/(1/SUMPRODUCT((Table10[TrackN]=Table9[[#This Row],[TrackN]])*(Table10[Tag]=1)*(ROW(Table10[])-MIN(ROW(Table10[]))+1)))),\"\")","v":""},"Fisher"]
[null,"A238",{"$f":"IFERROR(INDEX(Table10[Date],1/(1/SUMPRODUCT((Table10[TrackN]=Table9[[#This Row],[TrackN]])*(Table10[Tag]=1)*(ROW(Table10[])-MIN(ROW(Table10[]))+1)))),\"\")","v":""},{"$f":"IFERROR(INDEX(Table10[Qty],1/(1/SUMPRODUCT((Table10[TrackN]=Table9[[#This Row],[TrackN]])*(Table10[Tag]=1)*(ROW(Table10[])-MIN(ROW(Table10[]))+1)))),\"\")","v":""},"Scott"]
[null,"A239",{"$f":"IFERROR(INDEX(Table10[Date],1/(1/SUMPRODUCT((Table10[TrackN]=Table9[[#This Row],[TrackN]])*(Table10[Tag]=1)*(ROW(Table10[])-MIN(ROW(Table10[]))+1)))),\"\")","v":"2011-03-03"},{"$f":"IFERROR(INDEX(Table10[Qty],1/(1/SUMPRODUCT((Table10[TrackN]=Table9[[#This Row],[TrackN]])*(Table10[Tag]=1)*(ROW(Table10[])-MIN(ROW(Table10[]))+1)))),\"\")","v":63},"Cole"]
[null,"A240",{"$f":"IFERROR(INDEX(Table10[Date],1/(1/SUMPRODUCT((Table10[TrackN]=Table9[[#This Row],[TrackN]])*(Table10[Tag]=1)*(ROW(Table10[])-MIN(ROW(Table10[]))+1)))),\"\")","v":""},{"$f":"IFERROR(INDEX(Table10[Qty],1/(1/SUMPRODUCT((Table10[TrackN]=Table9[[#This Row],[TrackN]])*(Table10[Tag]=1)*(ROW(Table10[])-MIN(ROW(Table10[]))+1)))),\"\")","v":""},"Nelson"]
[null,"A241",{"$f":"IFERROR(INDEX(Table10[Date],1/(1/SUMPRODUCT((Table10[TrackN]=Table9[[#This Row],[TrackN]])*(Table10[Tag]=1)*(ROW(Table10[])-MIN(ROW(Table10[]))+1)))),\"\")","v":"2011-03-10"},{"$f":"IFERROR(INDEX(Table10[Qty],1/(1/SUMPRODUCT((Table10[TrackN]=Table9[[#This Row],[TrackN]])*(Table10[Tag]=1)*(ROW(Table10[])-MIN(ROW(Table10[]))+1)))),\"\")","v":47},"Turner"]
[null,"A242",{"$f":"IFERROR(INDEX(Table10[Date],1/(1/SUMPRODUCT((Table10[TrackN]=Table9[[#This Row],[TrackN]])*(Table10[Tag]=1)*(ROW(Table10[])-MIN(ROW(Table10[]))+1)))),\"\")","v":""},{"$f":"IFERROR(INDEX(Table10[Qty],1/(1/SUMPRODUCT((Table10[TrackN]=Table9[[#This Row],[TrackN]])*(Table10[Tag]=1)*(ROW(Table10[])-MIN(ROW(Table10[]))+1)))),\"\")","v":""},"Allen"]
[null,"A243",{"$f":"IFERROR(INDEX(Table10[Date],1/(1/SUMPRODUCT((Table10[TrackN]=Table9[[#This Row],[TrackN]])*(Table10[Tag]=1)*(ROW(Table10[])-MIN(ROW(Table10[]))+1)))),\"\")","v":""},{"$f":"IFERROR(INDEX(Table10[Qty],1/(1/SUMPRODUCT((Table10[TrackN]=Table9[[#This Row],[TrackN]])*(Table10[Tag]=1)*(ROW(Table10[])-MIN(ROW(Table10[]))+1)))),\"\")","v":""},"Bryant"]
[null,"A244",{"$f":"IFERROR(INDEX(Table10[Date],1/(1/SUMPRODUCT((Table10[TrackN]=Table9[[#This Row],[TrackN]])*(Table10[Tag]=1)*(ROW(Table10[])-MIN(ROW(Table10[]))+1)))),\"\")","v":""},{"$f":"IFERROR(INDEX(Table10[Qty],1/(1/SUMPRODUCT((Table10[TrackN]=Table9[[#This Row],[TrackN]])*(Table10[Tag]=1)*(ROW(Table10[])-MIN(ROW(Table10[]))+1)))),\"\")","v":""},"Walker"]
[null,"A245",{"$f":"IFERROR(INDEX(Table10[Date],1/(1/SUMPRODUCT((Table10[TrackN]=Table9[[#This Row],[TrackN]])*(Table10[Tag]=1)*(ROW(Table10[])-MIN(ROW(Table10[]))+1)))),\"\")","v":""},{"$f":"IFERROR(INDEX(Table10[Qty],1/(1/SUMPRODUCT((Table10[TrackN]=Table9[[#This Row],[TrackN]])*(Table10[Tag]=1)*(ROW(Table10[])-MIN(ROW(Table10[]))+1)))),\"\")","v":""},"Parker"]
[null,"A246",{"$f":"IFERROR(INDEX(Table10[Date],1/(1/SUMPRODUCT((Table10[TrackN]=Table9[[#This Row],[TrackN]])*(Table10[Tag]=1)*(ROW(Table10[])-MIN(ROW(Table10[]))+1)))),\"\")","v":""},{"$f":"IFERROR(INDEX(Table10[Qty],1/(1/SUMPRODUCT((Table10[TrackN]=Table9[[#This Row],[TrackN]])*(Table10[Tag]=1)*(ROW(Table10[])-MIN(ROW(Table10[]))+1)))),\"\")","v":""},"Stevens"]
[null,"A247",{"$f":"IFERROR(INDEX(Table10[Date],1/(1/SUMPRODUCT((Table10[TrackN]=Table9[[#This Row],[TrackN]])*(Table10[Tag]=1)*(ROW(Table10[])-MIN(ROW(Table10[]))+1)))),\"\")","v":""},{"$f":"IFERROR(INDEX(Table10[Qty],1/(1/SUMPRODUCT((Table10[TrackN]=Table9[[#This Row],[TrackN]])*(Table10[Tag]=1)*(ROW(Table10[])-MIN(ROW(Table10[]))+1)))),\"\")","v":""},"Bennett"]
[null,"A248",{"$f":"IFERROR(INDEX(Table10[Date],1/(1/SUMPRODUCT((Table10[TrackN]=Table9[[#This Row],[TrackN]])*(Table10[Tag]=1)*(ROW(Table10[])-MIN(ROW(Table10[]))+1)))),\"\")","v":""},{"$f":"IFERROR(INDEX(Table10[Qty],1/(1/SUMPRODUCT((Table10[TrackN]=Table9[[#This Row],[TrackN]])*(Table10[Tag]=1)*(ROW(Table10[])-MIN(ROW(Table10[]))+1)))),\"\")","v":""},"Sanchez"]
[null,"A249",{"$f":"IFERROR(INDEX(Table10[Date],1/(1/SUMPRODUCT((Table10[TrackN]=Table9[[#This Row],[TrackN]])*(Table10[Tag]=1)*(ROW(Table10[])-MIN(ROW(Table10[]))+1)))),\"\")","v":""},{"$f":"IFERROR(INDEX(Table10[Qty],1/(1/SUMPRODUCT((Table10[TrackN]=Table9[[#This Row],[TrackN]])*(Table10[Tag]=1)*(ROW(Table10[])-MIN(ROW(Table10[]))+1)))),\"\")","v":""},"Flores"]
[null,"A250",{"$f":"IFERROR(INDEX(Table10[Date],1/(1/SUMPRODUCT((Table10[TrackN]=Table9[[#This Row],[TrackN]])*(Table10[Tag]=1)*(ROW(Table10[])-MIN(ROW(Table10[]))+1)))),\"\")","v":""},{"$f":"IFERROR(INDEX(Table10[Qty],1/(1/SUMPRODUCT((Table10[TrackN]=Table9[[#This Row],[TrackN]])*(Table10[Tag]=1)*(ROW(Table10[])-MIN(ROW(Table10[]))+1)))),\"\")","v":""},"Hamilton"]
[null,"A251",{"$f":"IFERROR(INDEX(Table10[Date],1/(1/SUMPRODUCT((Table10[TrackN]=Table9[[#This Row],[TrackN]])*(Table10[Tag]=1)*(ROW(Table10[])-MIN(ROW(Table10[]))+1)))),\"\")","v":""},{"$f":"IFERROR(INDEX(Table10[Qty],1/(1/SUMPRODUCT((Table10[TrackN]=Table9[[#This Row],[TrackN]])*(Table10[Tag]=1)*(ROW(Table10[])-MIN(ROW(Table10[]))+1)))),\"\")","v":""},"Hill"]
[null,"A252",{"$f":"IFERROR(INDEX(Table10[Date],1/(1/SUMPRODUCT((Table10[TrackN]=Table9[[#This Row],[TrackN]])*(Table10[Tag]=1)*(ROW(Table10[])-MIN(ROW(Table10[]))+1)))),\"\")","v":""},{"$f":"IFERROR(INDEX(Table10[Qty],1/(1/SUMPRODUCT((Table10[TrackN]=Table9[[#This Row],[TrackN]])*(Table10[Tag]=1)*(ROW(Table10[])-MIN(ROW(Table10[]))+1)))),\"\")","v":""},"Wallace"]
[null,"A253",{"$f":"IFERROR(INDEX(Table10[Date],1/(1/SUMPRODUCT((Table10[TrackN]=Table9[[#This Row],[TrackN]])*(Table10[Tag]=1)*(ROW(Table10[])-MIN(ROW(Table10[]))+1)))),\"\")","v":""},{"$f":"IFERROR(INDEX(Table10[Qty],1/(1/SUMPRODUCT((Table10[TrackN]=Table9[[#This Row],[TrackN]])*(Table10[Tag]=1)*(ROW(Table10[])-MIN(ROW(Table10[]))+1)))),\"\")","v":""},"Bennett"]
[null,"A254",{"$f":"IFERROR(INDEX(Table10[Date],1/(1/SUMPRODUCT((Table10[TrackN]=Table9[[#This Row],[TrackN]])*(Table10[Tag]=1)*(ROW(Table10[])-MIN(ROW(Table10[]))+1)))),\"\")","v":""},{"$f":"IFERROR(INDEX(Table10[Qty],1/(1/SUMPRODUCT((Table10[TrackN]=Table9[[#This Row],[TrackN]])*(Table10[Tag]=1)*(ROW(Table10[])-MIN(ROW(Table10[]))+1)))),\"\")","v":""},"Scott"]
[null,"A255",{"$f":"IFERROR(INDEX(Table10[Date],1/(1/SUMPRODUCT((Table10[TrackN]=Table9[[#This Row],[TrackN]])*(Table10[Tag]=1)*(ROW(Table10[])-MIN(ROW(Table10[]))+1)))),\"\")","v":""},{"$f":"IFERROR(INDEX(Table10[Qty],1/(1/SUMPRODUCT((Table10[TrackN]=Table9[[#This Row],[TrackN]])*(Table10[Tag]=1)*(ROW(Table10[])-MIN(ROW(Table10[]))+1)))),\"\")","v":""},"Bryant"]
[null,"A256",{"$f":"IFERROR(INDEX(Table10[Date],1/(1/SUMPRODUCT((Table10[TrackN]=Table9[[#This Row],[TrackN]])*(Table10[Tag]=1)*(ROW(Table10[])-MIN(ROW(Table10[]))+1)))),\"\")","v":""},{"$f":"IFERROR(INDEX(Table10[Qty],1/(1/SUMPRODUCT((Table10[TrackN]=Table9[[#This Row],[TrackN]])*(Table10[Tag]=1)*(ROW(Table10[])-MIN(ROW(Table10[]))+1)))),\"\")","v":""},"Cruz"]
[null,"A257",{"$f":"IFERROR(INDEX(Table10[Date],1/(1/SUMPRODUCT((Table10[TrackN]=Table9[[#This Row],[TrackN]])*(Table10[Tag]=1)*(ROW(Table10[])-MIN(ROW(Table10[]))+1)))),\"\")","v":""},{"$f":"IFERROR(INDEX(Table10[Qty],1/(1/SUMPRODUCT((Table10[TrackN]=Table9[[#This Row],[TrackN]])*(Table10[Tag]=1)*(ROW(Table10[])-MIN(ROW(Table10[]))+1)))),\"\")","v":""},"Green"]
[null,"A258",{"$f":"IFERROR(INDEX(Table10[Date],1/(1/SUMPRODUCT((Table10[TrackN]=Table9[[#This Row],[TrackN]])*(Table10[Tag]=1)*(ROW(Table10[])-MIN(ROW(Table10[]))+1)))),\"\")","v":""},{"$f":"IFERROR(INDEX(Table10[Qty],1/(1/SUMPRODUCT((Table10[TrackN]=Table9[[#This Row],[TrackN]])*(Table10[Tag]=1)*(ROW(Table10[])-MIN(ROW(Table10[]))+1)))),\"\")","v":""},"Jackson"]
[null,"A259",{"$f":"IFERROR(INDEX(Table10[Date],1/(1/SUMPRODUCT((Table10[TrackN]=Table9[[#This Row],[TrackN]])*(Table10[Tag]=1)*(ROW(Table10[])-MIN(ROW(Table10[]))+1)))),\"\")","v":""},{"$f":"IFERROR(INDEX(Table10[Qty],1/(1/SUMPRODUCT((Table10[TrackN]=Table9[[#This Row],[TrackN]])*(Table10[Tag]=1)*(ROW(Table10[])-MIN(ROW(Table10[]))+1)))),\"\")","v":""},"Thomas"]
[null,"A260",{"$f":"IFERROR(INDEX(Table10[Date],1/(1/SUMPRODUCT((Table10[TrackN]=Table9[[#This Row],[TrackN]])*(Table10[Tag]=1)*(ROW(Table10[])-MIN(ROW(Table10[]))+1)))),\"\")","v":""},{"$f":"IFERROR(INDEX(Table10[Qty],1/(1/SUMPRODUCT((Table10[TrackN]=Table9[[#This Row],[TrackN]])*(Table10[Tag]=1)*(ROW(Table10[])-MIN(ROW(Table10[]))+1)))),\"\")","v":""},"Peterson"]
[null,"A261",{"$f":"IFERROR(INDEX(Table10[Date],1/(1/SUMPRODUCT((Table10[TrackN]=Table9[[#This Row],[TrackN]])*(Table10[Tag]=1)*(ROW(Table10[])-MIN(ROW(Table10[]))+1)))),\"\")","v":""},{"$f":"IFERROR(INDEX(Table10[Qty],1/(1/SUMPRODUCT((Table10[TrackN]=Table9[[#This Row],[TrackN]])*(Table10[Tag]=1)*(ROW(Table10[])-MIN(ROW(Table10[]))+1)))),\"\")","v":""},"Sullivan"]
[null,"A262",{"$f":"IFERROR(INDEX(Table10[Date],1/(1/SUMPRODUCT((Table10[TrackN]=Table9[[#This Row],[TrackN]])*(Table10[Tag]=1)*(ROW(Table10[])-MIN(ROW(Table10[]))+1)))),\"\")","v":""},{"$f":"IFERROR(INDEX(Table10[Qty],1/(1/SUMPRODUCT((Table10[TrackN]=Table9[[#This Row],[TrackN]])*(Table10[Tag]=1)*(ROW(Table10[])-MIN(ROW(Table10[]))+1)))),\"\")","v":""},"Martinez"]
[null,"A263",{"$f":"IFERROR(INDEX(Table10[Date],1/(1/SUMPRODUCT((Table10[TrackN]=Table9[[#This Row],[TrackN]])*(Table10[Tag]=1)*(ROW(Table10[])-MIN(ROW(Table10[]))+1)))),\"\")","v":""},{"$f":"IFERROR(INDEX(Table10[Qty],1/(1/SUMPRODUCT((Table10[TrackN]=Table9[[#This Row],[TrackN]])*(Table10[Tag]=1)*(ROW(Table10[])-MIN(ROW(Table10[]))+1)))),\"\")","v":""},"Murray"]
[null,"A264",{"$f":"IFERROR(INDEX(Table10[Date],1/(1/SUMPRODUCT((Table10[TrackN]=Table9[[#This Row],[TrackN]])*(Table10[Tag]=1)*(ROW(Table10[])-MIN(ROW(Table10[]))+1)))),\"\")","v":""},{"$f":"IFERROR(INDEX(Table10[Qty],1/(1/SUMPRODUCT((Table10[TrackN]=Table9[[#This Row],[TrackN]])*(Table10[Tag]=1)*(ROW(Table10[])-MIN(ROW(Table10[]))+1)))),\"\")","v":""},"Simmons"]
[null,"A265",{"$f":"IFERROR(INDEX(Table10[Date],1/(1/SUMPRODUCT((Table10[TrackN]=Table9[[#This Row],[TrackN]])*(Table10[Tag]=1)*(ROW(Table10[])-MIN(ROW(Table10[]))+1)))),\"\")","v":""},{"$f":"IFERROR(INDEX(Table10[Qty],1/(1/SUMPRODUCT((Table10[TrackN]=Table9[[#This Row],[TrackN]])*(Table10[Tag]=1)*(ROW(Table10[])-MIN(ROW(Table10[]))+1)))),\"\")","v":""},"Gonzales"]
[null,"A266",{"$f":"IFERROR(INDEX(Table10[Date],1/(1/SUMPRODUCT((Table10[TrackN]=Table9[[#This Row],[TrackN]])*(Table10[Tag]=1)*(ROW(Table10[])-MIN(ROW(Table10[]))+1)))),\"\")","v":""},{"$f":"IFERROR(INDEX(Table10[Qty],1/(1/SUMPRODUCT((Table10[TrackN]=Table9[[#This Row],[TrackN]])*(Table10[Tag]=1)*(ROW(Table10[])-MIN(ROW(Table10[]))+1)))),\"\")","v":""},"Myers"]
[null,"A267",{"$f":"IFERROR(INDEX(Table10[Date],1/(1/SUMPRODUCT((Table10[TrackN]=Table9[[#This Row],[TrackN]])*(Table10[Tag]=1)*(ROW(Table10[])-MIN(ROW(Table10[]))+1)))),\"\")","v":"2011-04-01"},{"$f":"IFERROR(INDEX(Table10[Qty],1/(1/SUMPRODUCT((Table10[TrackN]=Table9[[#This Row],[TrackN]])*(Table10[Tag]=1)*(ROW(Table10[])-MIN(ROW(Table10[]))+1)))),\"\")","v":30},"Williams"]
[null,"A268",{"$f":"IFERROR(INDEX(Table10[Date],1/(1/SUMPRODUCT((Table10[TrackN]=Table9[[#This Row],[TrackN]])*(Table10[Tag]=1)*(ROW(Table10[])-MIN(ROW(Table10[]))+1)))),\"\")","v":""},{"$f":"IFERROR(INDEX(Table10[Qty],1/(1/SUMPRODUCT((Table10[TrackN]=Table9[[#This Row],[TrackN]])*(Table10[Tag]=1)*(ROW(Table10[])-MIN(ROW(Table10[]))+1)))),\"\")","v":""},"Foster"]
[null,"A269",{"$f":"IFERROR(INDEX(Table10[Date],1/(1/SUMPRODUCT((Table10[TrackN]=Table9[[#This Row],[TrackN]])*(Table10[Tag]=1)*(ROW(Table10[])-MIN(ROW(Table10[]))+1)))),\"\")","v":""},{"$f":"IFERROR(INDEX(Table10[Qty],1/(1/SUMPRODUCT((Table10[TrackN]=Table9[[#This Row],[TrackN]])*(Table10[Tag]=1)*(ROW(Table10[])-MIN(ROW(Table10[]))+1)))),\"\")","v":""},"Graham"]
[null,"A270",{"$f":"IFERROR(INDEX(Table10[Date],1/(1/SUMPRODUCT((Table10[TrackN]=Table9[[#This Row],[TrackN]])*(Table10[Tag]=1)*(ROW(Table10[])-MIN(ROW(Table10[]))+1)))),\"\")","v":""},{"$f":"IFERROR(INDEX(Table10[Qty],1/(1/SUMPRODUCT((Table10[TrackN]=Table9[[#This Row],[TrackN]])*(Table10[Tag]=1)*(ROW(Table10[])-MIN(ROW(Table10[]))+1)))),\"\")","v":""},"Phillips"]
[null,"A271",{"$f":"IFERROR(INDEX(Table10[Date],1/(1/SUMPRODUCT((Table10[TrackN]=Table9[[#This Row],[TrackN]])*(Table10[Tag]=1)*(ROW(Table10[])-MIN(ROW(Table10[]))+1)))),\"\")","v":""},{"$f":"IFERROR(INDEX(Table10[Qty],1/(1/SUMPRODUCT((Table10[TrackN]=Table9[[#This Row],[TrackN]])*(Table10[Tag]=1)*(ROW(Table10[])-MIN(ROW(Table10[]))+1)))),\"\")","v":""},"Clark"]
[null,"A272",{"$f":"IFERROR(INDEX(Table10[Date],1/(1/SUMPRODUCT((Table10[TrackN]=Table9[[#This Row],[TrackN]])*(Table10[Tag]=1)*(ROW(Table10[])-MIN(ROW(Table10[]))+1)))),\"\")","v":""},{"$f":"IFERROR(INDEX(Table10[Qty],1/(1/SUMPRODUCT((Table10[TrackN]=Table9[[#This Row],[TrackN]])*(Table10[Tag]=1)*(ROW(Table10[])-MIN(ROW(Table10[]))+1)))),\"\")","v":""},"Perez"]
[null,"A273",{"$f":"IFERROR(INDEX(Table10[Date],1/(1/SUMPRODUCT((Table10[TrackN]=Table9[[#This Row],[TrackN]])*(Table10[Tag]=1)*(ROW(Table10[])-MIN(ROW(Table10[]))+1)))),\"\")","v":"2011-04-09"},{"$f":"IFERROR(INDEX(Table10[Qty],1/(1/SUMPRODUCT((Table10[TrackN]=Table9[[#This Row],[TrackN]])*(Table10[Tag]=1)*(ROW(Table10[])-MIN(ROW(Table10[]))+1)))),\"\")","v":16},"Lee"]
[null,"A274",{"$f":"IFERROR(INDEX(Table10[Date],1/(1/SUMPRODUCT((Table10[TrackN]=Table9[[#This Row],[TrackN]])*(Table10[Tag]=1)*(ROW(Table10[])-MIN(ROW(Table10[]))+1)))),\"\")","v":""},{"$f":"IFERROR(INDEX(Table10[Qty],1/(1/SUMPRODUCT((Table10[TrackN]=Table9[[#This Row],[TrackN]])*(Table10[Tag]=1)*(ROW(Table10[])-MIN(ROW(Table10[]))+1)))),\"\")","v":""},"Harrison"]
[null,"A275",{"$f":"IFERROR(INDEX(Table10[Date],1/(1/SUMPRODUCT((Table10[TrackN]=Table9[[#This Row],[TrackN]])*(Table10[Tag]=1)*(ROW(Table10[])-MIN(ROW(Table10[]))+1)))),\"\")","v":""},{"$f":"IFERROR(INDEX(Table10[Qty],1/(1/SUMPRODUCT((Table10[TrackN]=Table9[[#This Row],[TrackN]])*(Table10[Tag]=1)*(ROW(Table10[])-MIN(ROW(Table10[]))+1)))),\"\")","v":""},"Butler"]
[null,"A276",{"$f":"IFERROR(INDEX(Table10[Date],1/(1/SUMPRODUCT((Table10[TrackN]=Table9[[#This Row],[TrackN]])*(Table10[Tag]=1)*(ROW(Table10[])-MIN(ROW(Table10[]))+1)))),\"\")","v":"2011-03-29"},{"$f":"IFERROR(INDEX(Table10[Qty],1/(1/SUMPRODUCT((Table10[TrackN]=Table9[[#This Row],[TrackN]])*(Table10[Tag]=1)*(ROW(Table10[])-MIN(ROW(Table10[]))+1)))),\"\")","v":62},"Freeman"]
[null,"A277",{"$f":"IFERROR(INDEX(Table10[Date],1/(1/SUMPRODUCT((Table10[TrackN]=Table9[[#This Row],[TrackN]])*(Table10[Tag]=1)*(ROW(Table10[])-MIN(ROW(Table10[]))+1)))),\"\")","v":""},{"$f":"IFERROR(INDEX(Table10[Qty],1/(1/SUMPRODUCT((Table10[TrackN]=Table9[[#This Row],[TrackN]])*(Table10[Tag]=1)*(ROW(Table10[])-MIN(ROW(Table10[]))+1)))),\"\")","v":""},"Patterson"]
[null,"A278",{"$f":"IFERROR(INDEX(Table10[Date],1/(1/SUMPRODUCT((Table10[TrackN]=Table9[[#This Row],[TrackN]])*(Table10[Tag]=1)*(ROW(Table10[])-MIN(ROW(Table10[]))+1)))),\"\")","v":""},{"$f":"IFERROR(INDEX(Table10[Qty],1/(1/SUMPRODUCT((Table10[TrackN]=Table9[[#This Row],[TrackN]])*(Table10[Tag]=1)*(ROW(Table10[])-MIN(ROW(Table10[]))+1)))),\"\")","v":""},"Sullivan"]
[null,"A279",{"$f":"IFERROR(INDEX(Table10[Date],1/(1/SUMPRODUCT((Table10[TrackN]=Table9[[#This Row],[TrackN]])*(Table10[Tag]=1)*(ROW(Table10[])-MIN(ROW(Table10[]))+1)))),\"\")","v":""},{"$f":"IFERROR(INDEX(Table10[Qty],1/(1/SUMPRODUCT((Table10[TrackN]=Table9[[#This Row],[TrackN]])*(Table10[Tag]=1)*(ROW(Table10[])-MIN(ROW(Table10[]))+1)))),\"\")","v":""},"Phillips"]
[null,"A280",{"$f":"IFERROR(INDEX(Table10[Date],1/(1/SUMPRODUCT((Table10[TrackN]=Table9[[#This Row],[TrackN]])*(Table10[Tag]=1)*(ROW(Table10[])-MIN(ROW(Table10[]))+1)))),\"\")","v":""},{"$f":"IFERROR(INDEX(Table10[Qty],1/(1/SUMPRODUCT((Table10[TrackN]=Table9[[#This Row],[TrackN]])*(Table10[Tag]=1)*(ROW(Table10[])-MIN(ROW(Table10[]))+1)))),\"\")","v":""},"Morgan"]
[null,"A281",{"$f":"IFERROR(INDEX(Table10[Date],1/(1/SUMPRODUCT((Table10[TrackN]=Table9[[#This Row],[TrackN]])*(Table10[Tag]=1)*(ROW(Table10[])-MIN(ROW(Table10[]))+1)))),\"\")","v":""},{"$f":"IFERROR(INDEX(Table10[Qty],1/(1/SUMPRODUCT((Table10[TrackN]=Table9[[#This Row],[TrackN]])*(Table10[Tag]=1)*(ROW(Table10[])-MIN(ROW(Table10[]))+1)))),\"\")","v":""},"James"]
[null,"A282",{"$f":"IFERROR(INDEX(Table10[Date],1/(1/SUMPRODUCT((Table10[TrackN]=Table9[[#This Row],[TrackN]])*(Table10[Tag]=1)*(ROW(Table10[])-MIN(ROW(Table10[]))+1)))),\"\")","v":""},{"$f":"IFERROR(INDEX(Table10[Qty],1/(1/SUMPRODUCT((Table10[TrackN]=Table9[[#This Row],[TrackN]])*(Table10[Tag]=1)*(ROW(Table10[])-MIN(ROW(Table10[]))+1)))),\"\")","v":""},"Turner"]
[null,"A283",{"$f":"IFERROR(INDEX(Table10[Date],1/(1/SUMPRODUCT((Table10[TrackN]=Table9[[#This Row],[TrackN]])*(Table10[Tag]=1)*(ROW(Table10[])-MIN(ROW(Table10[]))+1)))),\"\")","v":""},{"$f":"IFERROR(INDEX(Table10[Qty],1/(1/SUMPRODUCT((Table10[TrackN]=Table9[[#This Row],[TrackN]])*(Table10[Tag]=1)*(ROW(Table10[])-MIN(ROW(Table10[]))+1)))),\"\")","v":""},"Nelson"]
[null,"A284",{"$f":"IFERROR(INDEX(Table10[Date],1/(1/SUMPRODUCT((Table10[TrackN]=Table9[[#This Row],[TrackN]])*(Table10[Tag]=1)*(ROW(Table10[])-MIN(ROW(Table10[]))+1)))),\"\")","v":"2011-04-05"},{"$f":"IFERROR(INDEX(Table10[Qty],1/(1/SUMPRODUCT((Table10[TrackN]=Table9[[#This Row],[TrackN]])*(Table10[Tag]=1)*(ROW(Table10[])-MIN(ROW(Table10[]))+1)))),\"\")","v":11},"Kennedy"]
[null,"A285",{"$f":"IFERROR(INDEX(Table10[Date],1/(1/SUMPRODUCT((Table10[TrackN]=Table9[[#This Row],[TrackN]])*(Table10[Tag]=1)*(ROW(Table10[])-MIN(ROW(Table10[]))+1)))),\"\")","v":""},{"$f":"IFERROR(INDEX(Table10[Qty],1/(1/SUMPRODUCT((Table10[TrackN]=Table9[[#This Row],[TrackN]])*(Table10[Tag]=1)*(ROW(Table10[])-MIN(ROW(Table10[]))+1)))),\"\")","v":""},"Bailey"]
[null,"A286",{"$f":"IFERROR(INDEX(Table10[Date],1/(1/SUMPRODUCT((Table10[TrackN]=Table9[[#This Row],[TrackN]])*(Table10[Tag]=1)*(ROW(Table10[])-MIN(ROW(Table10[]))+1)))),\"\")","v":""},{"$f":"IFERROR(INDEX(Table10[Qty],1/(1/SUMPRODUCT((Table10[TrackN]=Table9[[#This Row],[TrackN]])*(Table10[Tag]=1)*(ROW(Table10[])-MIN(ROW(Table10[]))+1)))),\"\")","v":""},"Marshall"]
[null,"A287",{"$f":"IFERROR(INDEX(Table10[Date],1/(1/SUMPRODUCT((Table10[TrackN]=Table9[[#This Row],[TrackN]])*(Table10[Tag]=1)*(ROW(Table10[])-MIN(ROW(Table10[]))+1)))),\"\")","v":""},{"$f":"IFERROR(INDEX(Table10[Qty],1/(1/SUMPRODUCT((Table10[TrackN]=Table9[[#This Row],[TrackN]])*(Table10[Tag]=1)*(ROW(Table10[])-MIN(ROW(Table10[]))+1)))),\"\")","v":""},"Cox"]
[null,"A288",{"$f":"IFERROR(INDEX(Table10[Date],1/(1/SUMPRODUCT((Table10[TrackN]=Table9[[#This Row],[TrackN]])*(Table10[Tag]=1)*(ROW(Table10[])-MIN(ROW(Table10[]))+1)))),\"\")","v":""},{"$f":"IFERROR(INDEX(Table10[Qty],1/(1/SUMPRODUCT((Table10[TrackN]=Table9[[#This Row],[TrackN]])*(Table10[Tag]=1)*(ROW(Table10[])-MIN(ROW(Table10[]))+1)))),\"\")","v":""},"Ellis"]
[null,"A289",{"$f":"IFERROR(INDEX(Table10[Date],1/(1/SUMPRODUCT((Table10[TrackN]=Table9[[#This Row],[TrackN]])*(Table10[Tag]=1)*(ROW(Table10[])-MIN(ROW(Table10[]))+1)))),\"\")","v":""},{"$f":"IFERROR(INDEX(Table10[Qty],1/(1/SUMPRODUCT((Table10[TrackN]=Table9[[#This Row],[TrackN]])*(Table10[Tag]=1)*(ROW(Table10[])-MIN(ROW(Table10[]))+1)))),\"\")","v":""},"Bailey"]
[null,"A290",{"$f":"IFERROR(INDEX(Table10[Date],1/(1/SUMPRODUCT((Table10[TrackN]=Table9[[#This Row],[TrackN]])*(Table10[Tag]=1)*(ROW(Table10[])-MIN(ROW(Table10[]))+1)))),\"\")","v":"2011-02-14"},{"$f":"IFERROR(INDEX(Table10[Qty],1/(1/SUMPRODUCT((Table10[TrackN]=Table9[[#This Row],[TrackN]])*(Table10[Tag]=1)*(ROW(Table10[])-MIN(ROW(Table10[]))+1)))),\"\")","v":54},"Walker"]
[null,"A291",{"$f":"IFERROR(INDEX(Table10[Date],1/(1/SUMPRODUCT((Table10[TrackN]=Table9[[#This Row],[TrackN]])*(Table10[Tag]=1)*(ROW(Table10[])-MIN(ROW(Table10[]))+1)))),\"\")","v":""},{"$f":"IFERROR(INDEX(Table10[Qty],1/(1/SUMPRODUCT((Table10[TrackN]=Table9[[#This Row],[TrackN]])*(Table10[Tag]=1)*(ROW(Table10[])-MIN(ROW(Table10[]))+1)))),\"\")","v":""},"Ward"]
[null,"A292",{"$f":"IFERROR(INDEX(Table10[Date],1/(1/SUMPRODUCT((Table10[TrackN]=Table9[[#This Row],[TrackN]])*(Table10[Tag]=1)*(ROW(Table10[])-MIN(ROW(Table10[]))+1)))),\"\")","v":""},{"$f":"IFERROR(INDEX(Table10[Qty],1/(1/SUMPRODUCT((Table10[TrackN]=Table9[[#This Row],[TrackN]])*(Table10[Tag]=1)*(ROW(Table10[])-MIN(ROW(Table10[]))+1)))),\"\")","v":""},"Edwards"]
[null,"A293",{"$f":"IFERROR(INDEX(Table10[Date],1/(1/SUMPRODUCT((Table10[TrackN]=Table9[[#This Row],[TrackN]])*(Table10[Tag]=1)*(ROW(Table10[])-MIN(ROW(Table10[]))+1)))),\"\")","v":""},{"$f":"IFERROR(INDEX(Table10[Qty],1/(1/SUMPRODUCT((Table10[TrackN]=Table9[[#This Row],[TrackN]])*(Table10[Tag]=1)*(ROW(Table10[])-MIN(ROW(Table10[]))+1)))),\"\")","v":""},"Torres"]
[null,"A294",{"$f":"IFERROR(INDEX(Table10[Date],1/(1/SUMPRODUCT((Table10[TrackN]=Table9[[#This Row],[TrackN]])*(Table10[Tag]=1)*(ROW(Table10[])-MIN(ROW(Table10[]))+1)))),\"\")","v":""},{"$f":"IFERROR(INDEX(Table10[Qty],1/(1/SUMPRODUCT((Table10[TrackN]=Table9[[#This Row],[TrackN]])*(Table10[Tag]=1)*(ROW(Table10[])-MIN(ROW(Table10[]))+1)))),\"\")","v":""},"Mitchell"]
[null,"A295",{"$f":"IFERROR(INDEX(Table10[Date],1/(1/SUMPRODUCT((Table10[TrackN]=Table9[[#This Row],[TrackN]])*(Table10[Tag]=1)*(ROW(Table10[])-MIN(ROW(Table10[]))+1)))),\"\")","v":""},{"$f":"IFERROR(INDEX(Table10[Qty],1/(1/SUMPRODUCT((Table10[TrackN]=Table9[[#This Row],[TrackN]])*(Table10[Tag]=1)*(ROW(Table10[])-MIN(ROW(Table10[]))+1)))),\"\")","v":""},"Hill"]
[null,"A296",{"$f":"IFERROR(INDEX(Table10[Date],1/(1/SUMPRODUCT((Table10[TrackN]=Table9[[#This Row],[TrackN]])*(Table10[Tag]=1)*(ROW(Table10[])-MIN(ROW(Table10[]))+1)))),\"\")","v":""},{"$f":"IFERROR(INDEX(Table10[Qty],1/(1/SUMPRODUCT((Table10[TrackN]=Table9[[#This Row],[TrackN]])*(Table10[Tag]=1)*(ROW(Table10[])-MIN(ROW(Table10[]))+1)))),\"\")","v":""},"Ford"]
[null,"A297",{"$f":"IFERROR(INDEX(Table10[Date],1/(1/SUMPRODUCT((Table10[TrackN]=Table9[[#This Row],[TrackN]])*(Table10[Tag]=1)*(ROW(Table10[])-MIN(ROW(Table10[]))+1)))),\"\")","v":""},{"$f":"IFERROR(INDEX(Table10[Qty],1/(1/SUMPRODUCT((Table10[TrackN]=Table9[[#This Row],[TrackN]])*(Table10[Tag]=1)*(ROW(Table10[])-MIN(ROW(Table10[]))+1)))),\"\")","v":""},"Turner"]
[null,"A298",{"$f":"IFERROR(INDEX(Table10[Date],1/(1/SUMPRODUCT((Table10[TrackN]=Table9[[#This Row],[TrackN]])*(Table10[Tag]=1)*(ROW(Table10[])-MIN(ROW(Table10[]))+1)))),\"\")","v":""},{"$f":"IFERROR(INDEX(Table10[Qty],1/(1/SUMPRODUCT((Table10[TrackN]=Table9[[#This Row],[TrackN]])*(Table10[Tag]=1)*(ROW(Table10[])-MIN(ROW(Table10[]))+1)))),\"\")","v":""},"Long"]
[null,"A299",{"$f":"IFERROR(INDEX(Table10[Date],1/(1/SUMPRODUCT((Table10[TrackN]=Table9[[#This Row],[TrackN]])*(Table10[Tag]=1)*(ROW(Table10[])-MIN(ROW(Table10[]))+1)))),\"\")","v":"2011-02-25"},{"$f":"IFERROR(INDEX(Table10[Qty],1/(1/SUMPRODUCT((Table10[TrackN]=Table9[[#This Row],[TrackN]])*(Table10[Tag]=1)*(ROW(Table10[])-MIN(ROW(Table10[]))+1)))),\"\")","v":89},"Russell"]
[null,"A300",{"$f":"IFERROR(INDEX(Table10[Date],1/(1/SUMPRODUCT((Table10[TrackN]=Table9[[#This Row],[TrackN]])*(Table10[Tag]=1)*(ROW(Table10[])-MIN(ROW(Table10[]))+1)))),\"\")","v":""},{"$f":"IFERROR(INDEX(Table10[Qty],1/(1/SUMPRODUCT((Table10[TrackN]=Table9[[#This Row],[TrackN]])*(Table10[Tag]=1)*(ROW(Table10[])-MIN(ROW(Table10[]))+1)))),\"\")","v":""},"Perry"]
[null,"A301",{"$f":"IFERROR(INDEX(Table10[Date],1/(1/SUMPRODUCT((Table10[TrackN]=Table9[[#This Row],[TrackN]])*(Table10[Tag]=1)*(ROW(Table10[])-MIN(ROW(Table10[]))+1)))),\"\")","v":""},{"$f":"IFERROR(INDEX(Table10[Qty],1/(1/SUMPRODUCT((Table10[TrackN]=Table9[[#This Row],[TrackN]])*(Table10[Tag]=1)*(ROW(Table10[])-MIN(ROW(Table10[]))+1)))),\"\")","v":""},"Green"]
[null,"A302",{"$f":"IFERROR(INDEX(Table10[Date],1/(1/SUMPRODUCT((Table10[TrackN]=Table9[[#This Row],[TrackN]])*(Table10[Tag]=1)*(ROW(Table10[])-MIN(ROW(Table10[]))+1)))),\"\")","v":""},{"$f":"IFERROR(INDEX(Table10[Qty],1/(1/SUMPRODUCT((Table10[TrackN]=Table9[[#This Row],[TrackN]])*(Table10[Tag]=1)*(ROW(Table10[])-MIN(ROW(Table10[]))+1)))),\"\")","v":""},"Kennedy"]
[null,"A303",{"$f":"IFERROR(INDEX(Table10[Date],1/(1/SUMPRODUCT((Table10[TrackN]=Table9[[#This Row],[TrackN]])*(Table10[Tag]=1)*(ROW(Table10[])-MIN(ROW(Table10[]))+1)))),\"\")","v":""},{"$f":"IFERROR(INDEX(Table10[Qty],1/(1/SUMPRODUCT((Table10[TrackN]=Table9[[#This Row],[TrackN]])*(Table10[Tag]=1)*(ROW(Table10[])-MIN(ROW(Table10[]))+1)))),\"\")","v":""},"Parker"]
[null,"A304",{"$f":"IFERROR(INDEX(Table10[Date],1/(1/SUMPRODUCT((Table10[TrackN]=Table9[[#This Row],[TrackN]])*(Table10[Tag]=1)*(ROW(Table10[])-MIN(ROW(Table10[]))+1)))),\"\")","v":""},{"$f":"IFERROR(INDEX(Table10[Qty],1/(1/SUMPRODUCT((Table10[TrackN]=Table9[[#This Row],[TrackN]])*(Table10[Tag]=1)*(ROW(Table10[])-MIN(ROW(Table10[]))+1)))),\"\")","v":""},"Murray"]
[null,"A305",{"$f":"IFERROR(INDEX(Table10[Date],1/(1/SUMPRODUCT((Table10[TrackN]=Table9[[#This Row],[TrackN]])*(Table10[Tag]=1)*(ROW(Table10[])-MIN(ROW(Table10[]))+1)))),\"\")","v":""},{"$f":"IFERROR(INDEX(Table10[Qty],1/(1/SUMPRODUCT((Table10[TrackN]=Table9[[#This Row],[TrackN]])*(Table10[Tag]=1)*(ROW(Table10[])-MIN(ROW(Table10[]))+1)))),\"\")","v":""},"Marshall"]
[null,"A306",{"$f":"IFERROR(INDEX(Table10[Date],1/(1/SUMPRODUCT((Table10[TrackN]=Table9[[#This Row],[TrackN]])*(Table10[Tag]=1)*(ROW(Table10[])-MIN(ROW(Table10[]))+1)))),\"\")","v":""},{"$f":"IFERROR(INDEX(Table10[Qty],1/(1/SUMPRODUCT((Table10[TrackN]=Table9[[#This Row],[TrackN]])*(Table10[Tag]=1)*(ROW(Table10[])-MIN(ROW(Table10[]))+1)))),\"\")","v":""},"Ramirez"]
[null,"A307",{"$f":"IFERROR(INDEX(Table10[Date],1/(1/SUMPRODUCT((Table10[TrackN]=Table9[[#This Row],[TrackN]])*(Table10[Tag]=1)*(ROW(Table10[])-MIN(ROW(Table10[]))+1)))),\"\")","v":""},{"$f":"IFERROR(INDEX(Table10[Qty],1/(1/SUMPRODUCT((Table10[TrackN]=Table9[[#This Row],[TrackN]])*(Table10[Tag]=1)*(ROW(Table10[])-MIN(ROW(Table10[]))+1)))),\"\")","v":""},"Sanders"]
[null,"A308",{"$f":"IFERROR(INDEX(Table10[Date],1/(1/SUMPRODUCT((Table10[TrackN]=Table9[[#This Row],[TrackN]])*(Table10[Tag]=1)*(ROW(Table10[])-MIN(ROW(Table10[]))+1)))),\"\")","v":""},{"$f":"IFERROR(INDEX(Table10[Qty],1/(1/SUMPRODUCT((Table10[TrackN]=Table9[[#This Row],[TrackN]])*(Table10[Tag]=1)*(ROW(Table10[])-MIN(ROW(Table10[]))+1)))),\"\")","v":""},"Watson"]
[null,"A309",{"$f":"IFERROR(INDEX(Table10[Date],1/(1/SUMPRODUCT((Table10[TrackN]=Table9[[#This Row],[TrackN]])*(Table10[Tag]=1)*(ROW(Table10[])-MIN(ROW(Table10[]))+1)))),\"\")","v":""},{"$f":"IFERROR(INDEX(Table10[Qty],1/(1/SUMPRODUCT((Table10[TrackN]=Table9[[#This Row],[TrackN]])*(Table10[Tag]=1)*(ROW(Table10[])-MIN(ROW(Table10[]))+1)))),\"\")","v":""},"Carter"]
[null,"A310",{"$f":"IFERROR(INDEX(Table10[Date],1/(1/SUMPRODUCT((Table10[TrackN]=Table9[[#This Row],[TrackN]])*(Table10[Tag]=1)*(ROW(Table10[])-MIN(ROW(Table10[]))+1)))),\"\")","v":""},{"$f":"IFERROR(INDEX(Table10[Qty],1/(1/SUMPRODUCT((Table10[TrackN]=Table9[[#This Row],[TrackN]])*(Table10[Tag]=1)*(ROW(Table10[])-MIN(ROW(Table10[]))+1)))),\"\")","v":""},"Mitchell"]
[null,"A311",{"$f":"IFERROR(INDEX(Table10[Date],1/(1/SUMPRODUCT((Table10[TrackN]=Table9[[#This Row],[TrackN]])*(Table10[Tag]=1)*(ROW(Table10[])-MIN(ROW(Table10[]))+1)))),\"\")","v":""},{"$f":"IFERROR(INDEX(Table10[Qty],1/(1/SUMPRODUCT((Table10[TrackN]=Table9[[#This Row],[TrackN]])*(Table10[Tag]=1)*(ROW(Table10[])-MIN(ROW(Table10[]))+1)))),\"\")","v":""},"Butler"]
[null,"A312",{"$f":"IFERROR(INDEX(Table10[Date],1/(1/SUMPRODUCT((Table10[TrackN]=Table9[[#This Row],[TrackN]])*(Table10[Tag]=1)*(ROW(Table10[])-MIN(ROW(Table10[]))+1)))),\"\")","v":""},{"$f":"IFERROR(INDEX(Table10[Qty],1/(1/SUMPRODUCT((Table10[TrackN]=Table9[[#This Row],[TrackN]])*(Table10[Tag]=1)*(ROW(Table10[])-MIN(ROW(Table10[]))+1)))),\"\")","v":""},"Diaz"]
[null,"A313",{"$f":"IFERROR(INDEX(Table10[Date],1/(1/SUMPRODUCT((Table10[TrackN]=Table9[[#This Row],[TrackN]])*(Table10[Tag]=1)*(ROW(Table10[])-MIN(ROW(Table10[]))+1)))),\"\")","v":"2011-03-14"},{"$f":"IFERROR(INDEX(Table10[Qty],1/(1/SUMPRODUCT((Table10[TrackN]=Table9[[#This Row],[TrackN]])*(Table10[Tag]=1)*(ROW(Table10[])-MIN(ROW(Table10[]))+1)))),\"\")","v":84},"Murphy"]
[null,"A314",{"$f":"IFERROR(INDEX(Table10[Date],1/(1/SUMPRODUCT((Table10[TrackN]=Table9[[#This Row],[TrackN]])*(Table10[Tag]=1)*(ROW(Table10[])-MIN(ROW(Table10[]))+1)))),\"\")","v":""},{"$f":"IFERROR(INDEX(Table10[Qty],1/(1/SUMPRODUCT((Table10[TrackN]=Table9[[#This Row],[TrackN]])*(Table10[Tag]=1)*(ROW(Table10[])-MIN(ROW(Table10[]))+1)))),\"\")","v":""},"King"]
[null,"A315",{"$f":"IFERROR(INDEX(Table10[Date],1/(1/SUMPRODUCT((Table10[TrackN]=Table9[[#This Row],[TrackN]])*(Table10[Tag]=1)*(ROW(Table10[])-MIN(ROW(Table10[]))+1)))),\"\")","v":""},{"$f":"IFERROR(INDEX(Table10[Qty],1/(1/SUMPRODUCT((Table10[TrackN]=Table9[[#This Row],[TrackN]])*(Table10[Tag]=1)*(ROW(Table10[])-MIN(ROW(Table10[]))+1)))),\"\")","v":""},"King"]
[null,"A316",{"$f":"IFERROR(INDEX(Table10[Date],1/(1/SUMPRODUCT((Table10[TrackN]=Table9[[#This Row],[TrackN]])*(Table10[Tag]=1)*(ROW(Table10[])-MIN(ROW(Table10[]))+1)))),\"\")","v":""},{"$f":"IFERROR(INDEX(Table10[Qty],1/(1/SUMPRODUCT((Table10[TrackN]=Table9[[#This Row],[TrackN]])*(Table10[Tag]=1)*(ROW(Table10[])-MIN(ROW(Table10[]))+1)))),\"\")","v":""},"Hill"]
[null,"A317",{"$f":"IFERROR(INDEX(Table10[Date],1/(1/SUMPRODUCT((Table10[TrackN]=Table9[[#This Row],[TrackN]])*(Table10[Tag]=1)*(ROW(Table10[])-MIN(ROW(Table10[]))+1)))),\"\")","v":""},{"$f":"IFERROR(INDEX(Table10[Qty],1/(1/SUMPRODUCT((Table10[TrackN]=Table9[[#This Row],[TrackN]])*(Table10[Tag]=1)*(ROW(Table10[])-MIN(ROW(Table10[]))+1)))),\"\")","v":""},"Jones"]
[null,"A318",{"$f":"IFERROR(INDEX(Table10[Date],1/(1/SUMPRODUCT((Table10[TrackN]=Table9[[#This Row],[TrackN]])*(Table10[Tag]=1)*(ROW(Table10[])-MIN(ROW(Table10[]))+1)))),\"\")","v":""},{"$f":"IFERROR(INDEX(Table10[Qty],1/(1/SUMPRODUCT((Table10[TrackN]=Table9[[#This Row],[TrackN]])*(Table10[Tag]=1)*(ROW(Table10[])-MIN(ROW(Table10[]))+1)))),\"\")","v":""},"Lewis"]
[null,"A319",{"$f":"IFERROR(INDEX(Table10[Date],1/(1/SUMPRODUCT((Table10[TrackN]=Table9[[#This Row],[TrackN]])*(Table10[Tag]=1)*(ROW(Table10[])-MIN(ROW(Table10[]))+1)))),\"\")","v":""},{"$f":"IFERROR(INDEX(Table10[Qty],1/(1/SUMPRODUCT((Table10[TrackN]=Table9[[#This Row],[TrackN]])*(Table10[Tag]=1)*(ROW(Table10[])-MIN(ROW(Table10[]))+1)))),\"\")","v":""},"Collins"]
[null,"A320",{"$f":"IFERROR(INDEX(Table10[Date],1/(1/SUMPRODUCT((Table10[TrackN]=Table9[[#This Row],[TrackN]])*(Table10[Tag]=1)*(ROW(Table10[])-MIN(ROW(Table10[]))+1)))),\"\")","v":""},{"$f":"IFERROR(INDEX(Table10[Qty],1/(1/SUMPRODUCT((Table10[TrackN]=Table9[[#This Row],[TrackN]])*(Table10[Tag]=1)*(ROW(Table10[])-MIN(ROW(Table10[]))+1)))),\"\")","v":""},"Cox"]
[null,"A321",{"$f":"IFERROR(INDEX(Table10[Date],1/(1/SUMPRODUCT((Table10[TrackN]=Table9[[#This Row],[TrackN]])*(Table10[Tag]=1)*(ROW(Table10[])-MIN(ROW(Table10[]))+1)))),\"\")","v":""},{"$f":"IFERROR(INDEX(Table10[Qty],1/(1/SUMPRODUCT((Table10[TrackN]=Table9[[#This Row],[TrackN]])*(Table10[Tag]=1)*(ROW(Table10[])-MIN(ROW(Table10[]))+1)))),\"\")","v":""},"James"]
[null,"A322",{"$f":"IFERROR(INDEX(Table10[Date],1/(1/SUMPRODUCT((Table10[TrackN]=Table9[[#This Row],[TrackN]])*(Table10[Tag]=1)*(ROW(Table10[])-MIN(ROW(Table10[]))+1)))),\"\")","v":""},{"$f":"IFERROR(INDEX(Table10[Qty],1/(1/SUMPRODUCT((Table10[TrackN]=Table9[[#This Row],[TrackN]])*(Table10[Tag]=1)*(ROW(Table10[])-MIN(ROW(Table10[]))+1)))),\"\")","v":""},"Diaz"]
[null,"A323",{"$f":"IFERROR(INDEX(Table10[Date],1/(1/SUMPRODUCT((Table10[TrackN]=Table9[[#This Row],[TrackN]])*(Table10[Tag]=1)*(ROW(Table10[])-MIN(ROW(Table10[]))+1)))),\"\")","v":""},{"$f":"IFERROR(INDEX(Table10[Qty],1/(1/SUMPRODUCT((Table10[TrackN]=Table9[[#This Row],[TrackN]])*(Table10[Tag]=1)*(ROW(Table10[])-MIN(ROW(Table10[]))+1)))),\"\")","v":""},"Foster"]
[null,"A324",{"$f":"IFERROR(INDEX(Table10[Date],1/(1/SUMPRODUCT((Table10[TrackN]=Table9[[#This Row],[TrackN]])*(Table10[Tag]=1)*(ROW(Table10[])-MIN(ROW(Table10[]))+1)))),\"\")","v":""},{"$f":"IFERROR(INDEX(Table10[Qty],1/(1/SUMPRODUCT((Table10[TrackN]=Table9[[#This Row],[TrackN]])*(Table10[Tag]=1)*(ROW(Table10[])-MIN(ROW(Table10[]))+1)))),\"\")","v":""},"Howard"]
[null,"A325",{"$f":"IFERROR(INDEX(Table10[Date],1/(1/SUMPRODUCT((Table10[TrackN]=Table9[[#This Row],[TrackN]])*(Table10[Tag]=1)*(ROW(Table10[])-MIN(ROW(Table10[]))+1)))),\"\")","v":"2011-02-04"},{"$f":"IFERROR(INDEX(Table10[Qty],1/(1/SUMPRODUCT((Table10[TrackN]=Table9[[#This Row],[TrackN]])*(Table10[Tag]=1)*(ROW(Table10[])-MIN(ROW(Table10[]))+1)))),\"\")","v":58},"Jordan"]
[null,"A326",{"$f":"IFERROR(INDEX(Table10[Date],1/(1/SUMPRODUCT((Table10[TrackN]=Table9[[#This Row],[TrackN]])*(Table10[Tag]=1)*(ROW(Table10[])-MIN(ROW(Table10[]))+1)))),\"\")","v":""},{"$f":"IFERROR(INDEX(Table10[Qty],1/(1/SUMPRODUCT((Table10[TrackN]=Table9[[#This Row],[TrackN]])*(Table10[Tag]=1)*(ROW(Table10[])-MIN(ROW(Table10[]))+1)))),\"\")","v":""},"Alexander"]
[null,"A327",{"$f":"IFERROR(INDEX(Table10[Date],1/(1/SUMPRODUCT((Table10[TrackN]=Table9[[#This Row],[TrackN]])*(Table10[Tag]=1)*(ROW(Table10[])-MIN(ROW(Table10[]))+1)))),\"\")","v":""},{"$f":"IFERROR(INDEX(Table10[Qty],1/(1/SUMPRODUCT((Table10[TrackN]=Table9[[#This Row],[TrackN]])*(Table10[Tag]=1)*(ROW(Table10[])-MIN(ROW(Table10[]))+1)))),\"\")","v":""},"Murphy"]
[null,"A328",{"$f":"IFERROR(INDEX(Table10[Date],1/(1/SUMPRODUCT((Table10[TrackN]=Table9[[#This Row],[TrackN]])*(Table10[Tag]=1)*(ROW(Table10[])-MIN(ROW(Table10[]))+1)))),\"\")","v":""},{"$f":"IFERROR(INDEX(Table10[Qty],1/(1/SUMPRODUCT((Table10[TrackN]=Table9[[#This Row],[TrackN]])*(Table10[Tag]=1)*(ROW(Table10[])-MIN(ROW(Table10[]))+1)))),\"\")","v":""},"Hall"]
[null,"A329",{"$f":"IFERROR(INDEX(Table10[Date],1/(1/SUMPRODUCT((Table10[TrackN]=Table9[[#This Row],[TrackN]])*(Table10[Tag]=1)*(ROW(Table10[])-MIN(ROW(Table10[]))+1)))),\"\")","v":""},{"$f":"IFERROR(INDEX(Table10[Qty],1/(1/SUMPRODUCT((Table10[TrackN]=Table9[[#This Row],[TrackN]])*(Table10[Tag]=1)*(ROW(Table10[])-MIN(ROW(Table10[]))+1)))),\"\")","v":""},"Allen"]
[null,"A330",{"$f":"IFERROR(INDEX(Table10[Date],1/(1/SUMPRODUCT((Table10[TrackN]=Table9[[#This Row],[TrackN]])*(Table10[Tag]=1)*(ROW(Table10[])-MIN(ROW(Table10[]))+1)))),\"\")","v":""},{"$f":"IFERROR(INDEX(Table10[Qty],1/(1/SUMPRODUCT((Table10[TrackN]=Table9[[#This Row],[TrackN]])*(Table10[Tag]=1)*(ROW(Table10[])-MIN(ROW(Table10[]))+1)))),\"\")","v":""},"Kennedy"]
[null,"A331",{"$f":"IFERROR(INDEX(Table10[Date],1/(1/SUMPRODUCT((Table10[TrackN]=Table9[[#This Row],[TrackN]])*(Table10[Tag]=1)*(ROW(Table10[])-MIN(ROW(Table10[]))+1)))),\"\")","v":""},{"$f":"IFERROR(INDEX(Table10[Qty],1/(1/SUMPRODUCT((Table10[TrackN]=Table9[[#This Row],[TrackN]])*(Table10[Tag]=1)*(ROW(Table10[])-MIN(ROW(Table10[]))+1)))),\"\")","v":""},"Cook"]
[null,"A332",{"$f":"IFERROR(INDEX(Table10[Date],1/(1/SUMPRODUCT((Table10[TrackN]=Table9[[#This Row],[TrackN]])*(Table10[Tag]=1)*(ROW(Table10[])-MIN(ROW(Table10[]))+1)))),\"\")","v":"2011-03-14"},{"$f":"IFERROR(INDEX(Table10[Qty],1/(1/SUMPRODUCT((Table10[TrackN]=Table9[[#This Row],[TrackN]])*(Table10[Tag]=1)*(ROW(Table10[])-MIN(ROW(Table10[]))+1)))),\"\")","v":64},"Butler"]
[null,"A333",{"$f":"IFERROR(INDEX(Table10[Date],1/(1/SUMPRODUCT((Table10[TrackN]=Table9[[#This Row],[TrackN]])*(Table10[Tag]=1)*(ROW(Table10[])-MIN(ROW(Table10[]))+1)))),\"\")","v":""},{"$f":"IFERROR(INDEX(Table10[Qty],1/(1/SUMPRODUCT((Table10[TrackN]=Table9[[#This Row],[TrackN]])*(Table10[Tag]=1)*(ROW(Table10[])-MIN(ROW(Table10[]))+1)))),\"\")","v":""},"Hill"]
[null,"A334",{"$f":"IFERROR(INDEX(Table10[Date],1/(1/SUMPRODUCT((Table10[TrackN]=Table9[[#This Row],[TrackN]])*(Table10[Tag]=1)*(ROW(Table10[])-MIN(ROW(Table10[]))+1)))),\"\")","v":""},{"$f":"IFERROR(INDEX(Table10[Qty],1/(1/SUMPRODUCT((Table10[TrackN]=Table9[[#This Row],[TrackN]])*(Table10[Tag]=1)*(ROW(Table10[])-MIN(ROW(Table10[]))+1)))),\"\")","v":""},"Robinson"]
[null,"A335",{"$f":"IFERROR(INDEX(Table10[Date],1/(1/SUMPRODUCT((Table10[TrackN]=Table9[[#This Row],[TrackN]])*(Table10[Tag]=1)*(ROW(Table10[])-MIN(ROW(Table10[]))+1)))),\"\")","v":""},{"$f":"IFERROR(INDEX(Table10[Qty],1/(1/SUMPRODUCT((Table10[TrackN]=Table9[[#This Row],[TrackN]])*(Table10[Tag]=1)*(ROW(Table10[])-MIN(ROW(Table10[]))+1)))),\"\")","v":""},"Davis"]
[null,"A336",{"$f":"IFERROR(INDEX(Table10[Date],1/(1/SUMPRODUCT((Table10[TrackN]=Table9[[#This Row],[TrackN]])*(Table10[Tag]=1)*(ROW(Table10[])-MIN(ROW(Table10[]))+1)))),\"\")","v":""},{"$f":"IFERROR(INDEX(Table10[Qty],1/(1/SUMPRODUCT((Table10[TrackN]=Table9[[#This Row],[TrackN]])*(Table10[Tag]=1)*(ROW(Table10[])-MIN(ROW(Table10[]))+1)))),\"\")","v":""},"Carter"]
[null,"A337",{"$f":"IFERROR(INDEX(Table10[Date],1/(1/SUMPRODUCT((Table10[TrackN]=Table9[[#This Row],[TrackN]])*(Table10[Tag]=1)*(ROW(Table10[])-MIN(ROW(Table10[]))+1)))),\"\")","v":""},{"$f":"IFERROR(INDEX(Table10[Qty],1/(1/SUMPRODUCT((Table10[TrackN]=Table9[[#This Row],[TrackN]])*(Table10[Tag]=1)*(ROW(Table10[])-MIN(ROW(Table10[]))+1)))),\"\")","v":""},"Powell"]
[null,"A338",{"$f":"IFERROR(INDEX(Table10[Date],1/(1/SUMPRODUCT((Table10[TrackN]=Table9[[#This Row],[TrackN]])*(Table10[Tag]=1)*(ROW(Table10[])-MIN(ROW(Table10[]))+1)))),\"\")","v":""},{"$f":"IFERROR(INDEX(Table10[Qty],1/(1/SUMPRODUCT((Table10[TrackN]=Table9[[#This Row],[TrackN]])*(Table10[Tag]=1)*(ROW(Table10[])-MIN(ROW(Table10[]))+1)))),\"\")","v":""},"Marshall"]
[null,"A339",{"$f":"IFERROR(INDEX(Table10[Date],1/(1/SUMPRODUCT((Table10[TrackN]=Table9[[#This Row],[TrackN]])*(Table10[Tag]=1)*(ROW(Table10[])-MIN(ROW(Table10[]))+1)))),\"\")","v":"2011-02-28"},{"$f":"IFERROR(INDEX(Table10[Qty],1/(1/SUMPRODUCT((Table10[TrackN]=Table9[[#This Row],[TrackN]])*(Table10[Tag]=1)*(ROW(Table10[])-MIN(ROW(Table10[]))+1)))),\"\")","v":72},"Crawford"]
[null,"A340",{"$f":"IFERROR(INDEX(Table10[Date],1/(1/SUMPRODUCT((Table10[TrackN]=Table9[[#This Row],[TrackN]])*(Table10[Tag]=1)*(ROW(Table10[])-MIN(ROW(Table10[]))+1)))),\"\")","v":"2011-03-28"},{"$f":"IFERROR(INDEX(Table10[Qty],1/(1/SUMPRODUCT((Table10[TrackN]=Table9[[#This Row],[TrackN]])*(Table10[Tag]=1)*(ROW(Table10[])-MIN(ROW(Table10[]))+1)))),\"\")","v":56},"Bennett"]
[null,"A341",{"$f":"IFERROR(INDEX(Table10[Date],1/(1/SUMPRODUCT((Table10[TrackN]=Table9[[#This Row],[TrackN]])*(Table10[Tag]=1)*(ROW(Table10[])-MIN(ROW(Table10[]))+1)))),\"\")","v":""},{"$f":"IFERROR(INDEX(Table10[Qty],1/(1/SUMPRODUCT((Table10[TrackN]=Table9[[#This Row],[TrackN]])*(Table10[Tag]=1)*(ROW(Table10[])-MIN(ROW(Table10[]))+1)))),\"\")","v":""},"Evans"]
[null,"A342",{"$f":"IFERROR(INDEX(Table10[Date],1/(1/SUMPRODUCT((Table10[TrackN]=Table9[[#This Row],[TrackN]])*(Table10[Tag]=1)*(ROW(Table10[])-MIN(ROW(Table10[]))+1)))),\"\")","v":"2011-04-26"},{"$f":"IFERROR(INDEX(Table10[Qty],1/(1/SUMPRODUCT((Table10[TrackN]=Table9[[#This Row],[TrackN]])*(Table10[Tag]=1)*(ROW(Table10[])-MIN(ROW(Table10[]))+1)))),\"\")","v":31},"Coleman"]
[null,"A343",{"$f":"IFERROR(INDEX(Table10[Date],1/(1/SUMPRODUCT((Table10[TrackN]=Table9[[#This Row],[TrackN]])*(Table10[Tag]=1)*(ROW(Table10[])-MIN(ROW(Table10[]))+1)))),\"\")","v":""},{"$f":"IFERROR(INDEX(Table10[Qty],1/(1/SUMPRODUCT((Table10[TrackN]=Table9[[#This Row],[TrackN]])*(Table10[Tag]=1)*(ROW(Table10[])-MIN(ROW(Table10[]))+1)))),\"\")","v":""},"Gibson"]
[null,"A344",{"$f":"IFERROR(INDEX(Table10[Date],1/(1/SUMPRODUCT((Table10[TrackN]=Table9[[#This Row],[TrackN]])*(Table10[Tag]=1)*(ROW(Table10[])-MIN(ROW(Table10[]))+1)))),\"\")","v":""},{"$f":"IFERROR(INDEX(Table10[Qty],1/(1/SUMPRODUCT((Table10[TrackN]=Table9[[#This Row],[TrackN]])*(Table10[Tag]=1)*(ROW(Table10[])-MIN(ROW(Table10[]))+1)))),\"\")","v":""},"Scott"]
[null,"A345",{"$f":"IFERROR(INDEX(Table10[Date],1/(1/SUMPRODUCT((Table10[TrackN]=Table9[[#This Row],[TrackN]])*(Table10[Tag]=1)*(ROW(Table10[])-MIN(ROW(Table10[]))+1)))),\"\")","v":""},{"$f":"IFERROR(INDEX(Table10[Qty],1/(1/SUMPRODUCT((Table10[TrackN]=Table9[[#This Row],[TrackN]])*(Table10[Tag]=1)*(ROW(Table10[])-MIN(ROW(Table10[]))+1)))),\"\")","v":""},"Cook"]
[null,"A346",{"$f":"IFERROR(INDEX(Table10[Date],1/(1/SUMPRODUCT((Table10[TrackN]=Table9[[#This Row],[TrackN]])*(Table10[Tag]=1)*(ROW(Table10[])-MIN(ROW(Table10[]))+1)))),\"\")","v":"2011-01-20"},{"$f":"IFERROR(INDEX(Table10[Qty],1/(1/SUMPRODUCT((Table10[TrackN]=Table9[[#This Row],[TrackN]])*(Table10[Tag]=1)*(ROW(Table10[])-MIN(ROW(Table10[]))+1)))),\"\")","v":97},"Porter"]
[null,"A347",{"$f":"IFERROR(INDEX(Table10[Date],1/(1/SUMPRODUCT((Table10[TrackN]=Table9[[#This Row],[TrackN]])*(Table10[Tag]=1)*(ROW(Table10[])-MIN(ROW(Table10[]))+1)))),\"\")","v":""},{"$f":"IFERROR(INDEX(Table10[Qty],1/(1/SUMPRODUCT((Table10[TrackN]=Table9[[#This Row],[TrackN]])*(Table10[Tag]=1)*(ROW(Table10[])-MIN(ROW(Table10[]))+1)))),\"\")","v":""},"Wilson"]
[null,"A348",{"$f":"IFERROR(INDEX(Table10[Date],1/(1/SUMPRODUCT((Table10[TrackN]=Table9[[#This Row],[TrackN]])*(Table10[Tag]=1)*(ROW(Table10[])-MIN(ROW(Table10[]))+1)))),\"\")","v":"2011-03-25"},{"$f":"IFERROR(INDEX(Table10[Qty],1/(1/SUMPRODUCT((Table10[TrackN]=Table9[[#This Row],[TrackN]])*(Table10[Tag]=1)*(ROW(Table10[])-MIN(ROW(Table10[]))+1)))),\"\")","v":87},"Lee"]
[null,"A349",{"$f":"IFERROR(INDEX(Table10[Date],1/(1/SUMPRODUCT((Table10[TrackN]=Table9[[#This Row],[TrackN]])*(Table10[Tag]=1)*(ROW(Table10[])-MIN(ROW(Table10[]))+1)))),\"\")","v":""},{"$f":"IFERROR(INDEX(Table10[Qty],1/(1/SUMPRODUCT((Table10[TrackN]=Table9[[#This Row],[TrackN]])*(Table10[Tag]=1)*(ROW(Table10[])-MIN(ROW(Table10[]))+1)))),\"\")","v":""},"Taylor"]
[null,"A350",{"$f":"IFERROR(INDEX(Table10[Date],1/(1/SUMPRODUCT((Table10[TrackN]=Table9[[#This Row],[TrackN]])*(Table10[Tag]=1)*(ROW(Table10[])-MIN(ROW(Table10[]))+1)))),\"\")","v":"2011-01-23"},{"$f":"IFERROR(INDEX(Table10[Qty],1/(1/SUMPRODUCT((Table10[TrackN]=Table9[[#This Row],[TrackN]])*(Table10[Tag]=1)*(ROW(Table10[])-MIN(ROW(Table10[]))+1)))),\"\")","v":30},"Kelly"]
[null,"A351",{"$f":"IFERROR(INDEX(Table10[Date],1/(1/SUMPRODUCT((Table10[TrackN]=Table9[[#This Row],[TrackN]])*(Table10[Tag]=1)*(ROW(Table10[])-MIN(ROW(Table10[]))+1)))),\"\")","v":""},{"$f":"IFERROR(INDEX(Table10[Qty],1/(1/SUMPRODUCT((Table10[TrackN]=Table9[[#This Row],[TrackN]])*(Table10[Tag]=1)*(ROW(Table10[])-MIN(ROW(Table10[]))+1)))),\"\")","v":""},"Marshall"]
[null,"A352",{"$f":"IFERROR(INDEX(Table10[Date],1/(1/SUMPRODUCT((Table10[TrackN]=Table9[[#This Row],[TrackN]])*(Table10[Tag]=1)*(ROW(Table10[])-MIN(ROW(Table10[]))+1)))),\"\")","v":"2011-03-23"},{"$f":"IFERROR(INDEX(Table10[Qty],1/(1/SUMPRODUCT((Table10[TrackN]=Table9[[#This Row],[TrackN]])*(Table10[Tag]=1)*(ROW(Table10[])-MIN(ROW(Table10[]))+1)))),\"\")","v":31},"Richardson"]
[null,"A353",{"$f":"IFERROR(INDEX(Table10[Date],1/(1/SUMPRODUCT((Table10[TrackN]=Table9[[#This Row],[TrackN]])*(Table10[Tag]=1)*(ROW(Table10[])-MIN(ROW(Table10[]))+1)))),\"\")","v":""},{"$f":"IFERROR(INDEX(Table10[Qty],1/(1/SUMPRODUCT((Table10[TrackN]=Table9[[#This Row],[TrackN]])*(Table10[Tag]=1)*(ROW(Table10[])-MIN(ROW(Table10[]))+1)))),\"\")","v":""},"Harris"]
[null,"A354",{"$f":"IFERROR(INDEX(Table10[Date],1/(1/SUMPRODUCT((Table10[TrackN]=Table9[[#This Row],[TrackN]])*(Table10[Tag]=1)*(ROW(Table10[])-MIN(ROW(Table10[]))+1)))),\"\")","v":""},{"$f":"IFERROR(INDEX(Table10[Qty],1/(1/SUMPRODUCT((Table10[TrackN]=Table9[[#This Row],[TrackN]])*(Table10[Tag]=1)*(ROW(Table10[])-MIN(ROW(Table10[]))+1)))),\"\")","v":""},"Jones"]
[null,"A355",{"$f":"IFERROR(INDEX(Table10[Date],1/(1/SUMPRODUCT((Table10[TrackN]=Table9[[#This Row],[TrackN]])*(Table10[Tag]=1)*(ROW(Table10[])-MIN(ROW(Table10[]))+1)))),\"\")","v":""},{"$f":"IFERROR(INDEX(Table10[Qty],1/(1/SUMPRODUCT((Table10[TrackN]=Table9[[#This Row],[TrackN]])*(Table10[Tag]=1)*(ROW(Table10[])-MIN(ROW(Table10[]))+1)))),\"\")","v":""},"Fisher"]
[null,"A356",{"$f":"IFERROR(INDEX(Table10[Date],1/(1/SUMPRODUCT((Table10[TrackN]=Table9[[#This Row],[TrackN]])*(Table10[Tag]=1)*(ROW(Table10[])-MIN(ROW(Table10[]))+1)))),\"\")","v":""},{"$f":"IFERROR(INDEX(Table10[Qty],1/(1/SUMPRODUCT((Table10[TrackN]=Table9[[#This Row],[TrackN]])*(Table10[Tag]=1)*(ROW(Table10[])-MIN(ROW(Table10[]))+1)))),\"\")","v":""},"Reynolds"]
[null,"A357",{"$f":"IFERROR(INDEX(Table10[Date],1/(1/SUMPRODUCT((Table10[TrackN]=Table9[[#This Row],[TrackN]])*(Table10[Tag]=1)*(ROW(Table10[])-MIN(ROW(Table10[]))+1)))),\"\")","v":""},{"$f":"IFERROR(INDEX(Table10[Qty],1/(1/SUMPRODUCT((Table10[TrackN]=Table9[[#This Row],[TrackN]])*(Table10[Tag]=1)*(ROW(Table10[])-MIN(ROW(Table10[]))+1)))),\"\")","v":""},"Evans"]
[null,"A358",{"$f":"IFERROR(INDEX(Table10[Date],1/(1/SUMPRODUCT((Table10[TrackN]=Table9[[#This Row],[TrackN]])*(Table10[Tag]=1)*(ROW(Table10[])-MIN(ROW(Table10[]))+1)))),\"\")","v":""},{"$f":"IFERROR(INDEX(Table10[Qty],1/(1/SUMPRODUCT((Table10[TrackN]=Table9[[#This Row],[TrackN]])*(Table10[Tag]=1)*(ROW(Table10[])-MIN(ROW(Table10[]))+1)))),\"\")","v":""},"Reed"]
[null,"A359",{"$f":"IFERROR(INDEX(Table10[Date],1/(1/SUMPRODUCT((Table10[TrackN]=Table9[[#This Row],[TrackN]])*(Table10[Tag]=1)*(ROW(Table10[])-MIN(ROW(Table10[]))+1)))),\"\")","v":""},{"$f":"IFERROR(INDEX(Table10[Qty],1/(1/SUMPRODUCT((Table10[TrackN]=Table9[[#This Row],[TrackN]])*(Table10[Tag]=1)*(ROW(Table10[])-MIN(ROW(Table10[]))+1)))),\"\")","v":""},"Edwards"]
[null,"A360",{"$f":"IFERROR(INDEX(Table10[Date],1/(1/SUMPRODUCT((Table10[TrackN]=Table9[[#This Row],[TrackN]])*(Table10[Tag]=1)*(ROW(Table10[])-MIN(ROW(Table10[]))+1)))),\"\")","v":""},{"$f":"IFERROR(INDEX(Table10[Qty],1/(1/SUMPRODUCT((Table10[TrackN]=Table9[[#This Row],[TrackN]])*(Table10[Tag]=1)*(ROW(Table10[])-MIN(ROW(Table10[]))+1)))),\"\")","v":""},"Smith"]
[null,"A361",{"$f":"IFERROR(INDEX(Table10[Date],1/(1/SUMPRODUCT((Table10[TrackN]=Table9[[#This Row],[TrackN]])*(Table10[Tag]=1)*(ROW(Table10[])-MIN(ROW(Table10[]))+1)))),\"\")","v":""},{"$f":"IFERROR(INDEX(Table10[Qty],1/(1/SUMPRODUCT((Table10[TrackN]=Table9[[#This Row],[TrackN]])*(Table10[Tag]=1)*(ROW(Table10[])-MIN(ROW(Table10[]))+1)))),\"\")","v":""},"Patterson"]
[null,"A362",{"$f":"IFERROR(INDEX(Table10[Date],1/(1/SUMPRODUCT((Table10[TrackN]=Table9[[#This Row],[TrackN]])*(Table10[Tag]=1)*(ROW(Table10[])-MIN(ROW(Table10[]))+1)))),\"\")","v":""},{"$f":"IFERROR(INDEX(Table10[Qty],1/(1/SUMPRODUCT((Table10[TrackN]=Table9[[#This Row],[TrackN]])*(Table10[Tag]=1)*(ROW(Table10[])-MIN(ROW(Table10[]))+1)))),\"\")","v":""},"Anderson"]
[null,"A363",{"$f":"IFERROR(INDEX(Table10[Date],1/(1/SUMPRODUCT((Table10[TrackN]=Table9[[#This Row],[TrackN]])*(Table10[Tag]=1)*(ROW(Table10[])-MIN(ROW(Table10[]))+1)))),\"\")","v":""},{"$f":"IFERROR(INDEX(Table10[Qty],1/(1/SUMPRODUCT((Table10[TrackN]=Table9[[#This Row],[TrackN]])*(Table10[Tag]=1)*(ROW(Table10[])-MIN(ROW(Table10[]))+1)))),\"\")","v":""},"Tucker"]
[null,"A364",{"$f":"IFERROR(INDEX(Table10[Date],1/(1/SUMPRODUCT((Table10[TrackN]=Table9[[#This Row],[TrackN]])*(Table10[Tag]=1)*(ROW(Table10[])-MIN(ROW(Table10[]))+1)))),\"\")","v":""},{"$f":"IFERROR(INDEX(Table10[Qty],1/(1/SUMPRODUCT((Table10[TrackN]=Table9[[#This Row],[TrackN]])*(Table10[Tag]=1)*(ROW(Table10[])-MIN(ROW(Table10[]))+1)))),\"\")","v":""},"Wright"]
[null,"A365",{"$f":"IFERROR(INDEX(Table10[Date],1/(1/SUMPRODUCT((Table10[TrackN]=Table9[[#This Row],[TrackN]])*(Table10[Tag]=1)*(ROW(Table10[])-MIN(ROW(Table10[]))+1)))),\"\")","v":""},{"$f":"IFERROR(INDEX(Table10[Qty],1/(1/SUMPRODUCT((Table10[TrackN]=Table9[[#This Row],[TrackN]])*(Table10[Tag]=1)*(ROW(Table10[])-MIN(ROW(Table10[]))+1)))),\"\")","v":""},"Gibson"]
[null,"A366",{"$f":"IFERROR(INDEX(Table10[Date],1/(1/SUMPRODUCT((Table10[TrackN]=Table9[[#This Row],[TrackN]])*(Table10[Tag]=1)*(ROW(Table10[])-MIN(ROW(Table10[]))+1)))),\"\")","v":""},{"$f":"IFERROR(INDEX(Table10[Qty],1/(1/SUMPRODUCT((Table10[TrackN]=Table9[[#This Row],[TrackN]])*(Table10[Tag]=1)*(ROW(Table10[])-MIN(ROW(Table10[]))+1)))),\"\")","v":""},"Allen"]
[null,"A367",{"$f":"IFERROR(INDEX(Table10[Date],1/(1/SUMPRODUCT((Table10[TrackN]=Table9[[#This Row],[TrackN]])*(Table10[Tag]=1)*(ROW(Table10[])-MIN(ROW(Table10[]))+1)))),\"\")","v":""},{"$f":"IFERROR(INDEX(Table10[Qty],1/(1/SUMPRODUCT((Table10[TrackN]=Table9[[#This Row],[TrackN]])*(Table10[Tag]=1)*(ROW(Table10[])-MIN(ROW(Table10[]))+1)))),\"\")","v":""},"Hughes"]
[null,"A368",{"$f":"IFERROR(INDEX(Table10[Date],1/(1/SUMPRODUCT((Table10[TrackN]=Table9[[#This Row],[TrackN]])*(Table10[Tag]=1)*(ROW(Table10[])-MIN(ROW(Table10[]))+1)))),\"\")","v":""},{"$f":"IFERROR(INDEX(Table10[Qty],1/(1/SUMPRODUCT((Table10[TrackN]=Table9[[#This Row],[TrackN]])*(Table10[Tag]=1)*(ROW(Table10[])-MIN(ROW(Table10[]))+1)))),\"\")","v":""},"Williams"]
[null,"A369",{"$f":"IFERROR(INDEX(Table10[Date],1/(1/SUMPRODUCT((Table10[TrackN]=Table9[[#This Row],[TrackN]])*(Table10[Tag]=1)*(ROW(Table10[])-MIN(ROW(Table10[]))+1)))),\"\")","v":"2011-01-30"},{"$f":"IFERROR(INDEX(Table10[Qty],1/(1/SUMPRODUCT((Table10[TrackN]=Table9[[#This Row],[TrackN]])*(Table10[Tag]=1)*(ROW(Table10[])-MIN(ROW(Table10[]))+1)))),\"\")","v":37},"Stevens"]
[null,"A370",{"$f":"IFERROR(INDEX(Table10[Date],1/(1/SUMPRODUCT((Table10[TrackN]=Table9[[#This Row],[TrackN]])*(Table10[Tag]=1)*(ROW(Table10[])-MIN(ROW(Table10[]))+1)))),\"\")","v":""},{"$f":"IFERROR(INDEX(Table10[Qty],1/(1/SUMPRODUCT((Table10[TrackN]=Table9[[#This Row],[TrackN]])*(Table10[Tag]=1)*(ROW(Table10[])-MIN(ROW(Table10[]))+1)))),\"\")","v":""},"Young"]
[null,"A371",{"$f":"IFERROR(INDEX(Table10[Date],1/(1/SUMPRODUCT((Table10[TrackN]=Table9[[#This Row],[TrackN]])*(Table10[Tag]=1)*(ROW(Table10[])-MIN(ROW(Table10[]))+1)))),\"\")","v":""},{"$f":"IFERROR(INDEX(Table10[Qty],1/(1/SUMPRODUCT((Table10[TrackN]=Table9[[#This Row],[TrackN]])*(Table10[Tag]=1)*(ROW(Table10[])-MIN(ROW(Table10[]))+1)))),\"\")","v":""},"Mitchell"]
[null,"A372",{"$f":"IFERROR(INDEX(Table10[Date],1/(1/SUMPRODUCT((Table10[TrackN]=Table9[[#This Row],[TrackN]])*(Table10[Tag]=1)*(ROW(Table10[])-MIN(ROW(Table10[]))+1)))),\"\")","v":""},{"$f":"IFERROR(INDEX(Table10[Qty],1/(1/SUMPRODUCT((Table10[TrackN]=Table9[[#This Row],[TrackN]])*(Table10[Tag]=1)*(ROW(Table10[])-MIN(ROW(Table10[]))+1)))),\"\")","v":""},"White"]
[null,"A373",{"$f":"IFERROR(INDEX(Table10[Date],1/(1/SUMPRODUCT((Table10[TrackN]=Table9[[#This Row],[TrackN]])*(Table10[Tag]=1)*(ROW(Table10[])-MIN(ROW(Table10[]))+1)))),\"\")","v":""},{"$f":"IFERROR(INDEX(Table10[Qty],1/(1/SUMPRODUCT((Table10[TrackN]=Table9[[#This Row],[TrackN]])*(Table10[Tag]=1)*(ROW(Table10[])-MIN(ROW(Table10[]))+1)))),\"\")","v":""},"Fisher"]
[null,"A374",{"$f":"IFERROR(INDEX(Table10[Date],1/(1/SUMPRODUCT((Table10[TrackN]=Table9[[#This Row],[TrackN]])*(Table10[Tag]=1)*(ROW(Table10[])-MIN(ROW(Table10[]))+1)))),\"\")","v":""},{"$f":"IFERROR(INDEX(Table10[Qty],1/(1/SUMPRODUCT((Table10[TrackN]=Table9[[#This Row],[TrackN]])*(Table10[Tag]=1)*(ROW(Table10[])-MIN(ROW(Table10[]))+1)))),\"\")","v":""},"Foster"]
[null,"A375",{"$f":"IFERROR(INDEX(Table10[Date],1/(1/SUMPRODUCT((Table10[TrackN]=Table9[[#This Row],[TrackN]])*(Table10[Tag]=1)*(ROW(Table10[])-MIN(ROW(Table10[]))+1)))),\"\")","v":""},{"$f":"IFERROR(INDEX(Table10[Qty],1/(1/SUMPRODUCT((Table10[TrackN]=Table9[[#This Row],[TrackN]])*(Table10[Tag]=1)*(ROW(Table10[])-MIN(ROW(Table10[]))+1)))),\"\")","v":""},"Perry"]
[null,"A376",{"$f":"IFERROR(INDEX(Table10[Date],1/(1/SUMPRODUCT((Table10[TrackN]=Table9[[#This Row],[TrackN]])*(Table10[Tag]=1)*(ROW(Table10[])-MIN(ROW(Table10[]))+1)))),\"\")","v":""},{"$f":"IFERROR(INDEX(Table10[Qty],1/(1/SUMPRODUCT((Table10[TrackN]=Table9[[#This Row],[TrackN]])*(Table10[Tag]=1)*(ROW(Table10[])-MIN(ROW(Table10[]))+1)))),\"\")","v":""},"Hill"]
[null,"A377",{"$f":"IFERROR(INDEX(Table10[Date],1/(1/SUMPRODUCT((Table10[TrackN]=Table9[[#This Row],[TrackN]])*(Table10[Tag]=1)*(ROW(Table10[])-MIN(ROW(Table10[]))+1)))),\"\")","v":"2011-02-15"},{"$f":"IFERROR(INDEX(Table10[Qty],1/(1/SUMPRODUCT((Table10[TrackN]=Table9[[#This Row],[TrackN]])*(Table10[Tag]=1)*(ROW(Table10[])-MIN(ROW(Table10[]))+1)))),\"\")","v":42},"Hill"]
[null,"A378",{"$f":"IFERROR(INDEX(Table10[Date],1/(1/SUMPRODUCT((Table10[TrackN]=Table9[[#This Row],[TrackN]])*(Table10[Tag]=1)*(ROW(Table10[])-MIN(ROW(Table10[]))+1)))),\"\")","v":""},{"$f":"IFERROR(INDEX(Table10[Qty],1/(1/SUMPRODUCT((Table10[TrackN]=Table9[[#This Row],[TrackN]])*(Table10[Tag]=1)*(ROW(Table10[])-MIN(ROW(Table10[]))+1)))),\"\")","v":""},"Butler"]
[null,"A379",{"$f":"IFERROR(INDEX(Table10[Date],1/(1/SUMPRODUCT((Table10[TrackN]=Table9[[#This Row],[TrackN]])*(Table10[Tag]=1)*(ROW(Table10[])-MIN(ROW(Table10[]))+1)))),\"\")","v":""},{"$f":"IFERROR(INDEX(Table10[Qty],1/(1/SUMPRODUCT((Table10[TrackN]=Table9[[#This Row],[TrackN]])*(Table10[Tag]=1)*(ROW(Table10[])-MIN(ROW(Table10[]))+1)))),\"\")","v":""},"Kelly"]
[null,"A380",{"$f":"IFERROR(INDEX(Table10[Date],1/(1/SUMPRODUCT((Table10[TrackN]=Table9[[#This Row],[TrackN]])*(Table10[Tag]=1)*(ROW(Table10[])-MIN(ROW(Table10[]))+1)))),\"\")","v":""},{"$f":"IFERROR(INDEX(Table10[Qty],1/(1/SUMPRODUCT((Table10[TrackN]=Table9[[#This Row],[TrackN]])*(Table10[Tag]=1)*(ROW(Table10[])-MIN(ROW(Table10[]))+1)))),\"\")","v":""},"Ward"]
[null,"A381",{"$f":"IFERROR(INDEX(Table10[Date],1/(1/SUMPRODUCT((Table10[TrackN]=Table9[[#This Row],[TrackN]])*(Table10[Tag]=1)*(ROW(Table10[])-MIN(ROW(Table10[]))+1)))),\"\")","v":""},{"$f":"IFERROR(INDEX(Table10[Qty],1/(1/SUMPRODUCT((Table10[TrackN]=Table9[[#This Row],[TrackN]])*(Table10[Tag]=1)*(ROW(Table10[])-MIN(ROW(Table10[]))+1)))),\"\")","v":""},"Hernandez"]
[null,"A382",{"$f":"IFERROR(INDEX(Table10[Date],1/(1/SUMPRODUCT((Table10[TrackN]=Table9[[#This Row],[TrackN]])*(Table10[Tag]=1)*(ROW(Table10[])-MIN(ROW(Table10[]))+1)))),\"\")","v":""},{"$f":"IFERROR(INDEX(Table10[Qty],1/(1/SUMPRODUCT((Table10[TrackN]=Table9[[#This Row],[TrackN]])*(Table10[Tag]=1)*(ROW(Table10[])-MIN(ROW(Table10[]))+1)))),\"\")","v":""},"Hill"]
[null,"A383",{"$f":"IFERROR(INDEX(Table10[Date],1/(1/SUMPRODUCT((Table10[TrackN]=Table9[[#This Row],[TrackN]])*(Table10[Tag]=1)*(ROW(Table10[])-MIN(ROW(Table10[]))+1)))),\"\")","v":""},{"$f":"IFERROR(INDEX(Table10[Qty],1/(1/SUMPRODUCT((Table10[TrackN]=Table9[[#This Row],[TrackN]])*(Table10[Tag]=1)*(ROW(Table10[])-MIN(ROW(Table10[]))+1)))),\"\")","v":""},"King"]
[null,"A384",{"$f":"IFERROR(INDEX(Table10[Date],1/(1/SUMPRODUCT((Table10[TrackN]=Table9[[#This Row],[TrackN]])*(Table10[Tag]=1)*(ROW(Table10[])-MIN(ROW(Table10[]))+1)))),\"\")","v":""},{"$f":"IFERROR(INDEX(Table10[Qty],1/(1/SUMPRODUCT((Table10[TrackN]=Table9[[#This Row],[TrackN]])*(Table10[Tag]=1)*(ROW(Table10[])-MIN(ROW(Table10[]))+1)))),\"\")","v":""},"Taylor"]
[null,"A385",{"$f":"IFERROR(INDEX(Table10[Date],1/(1/SUMPRODUCT((Table10[TrackN]=Table9[[#This Row],[TrackN]])*(Table10[Tag]=1)*(ROW(Table10[])-MIN(ROW(Table10[]))+1)))),\"\")","v":"2011-04-23"},{"$f":"IFERROR(INDEX(Table10[Qty],1/(1/SUMPRODUCT((Table10[TrackN]=Table9[[#This Row],[TrackN]])*(Table10[Tag]=1)*(ROW(Table10[])-MIN(ROW(Table10[]))+1)))),\"\")","v":86},"Young"]
[null,"A386",{"$f":"IFERROR(INDEX(Table10[Date],1/(1/SUMPRODUCT((Table10[TrackN]=Table9[[#This Row],[TrackN]])*(Table10[Tag]=1)*(ROW(Table10[])-MIN(ROW(Table10[]))+1)))),\"\")","v":""},{"$f":"IFERROR(INDEX(Table10[Qty],1/(1/SUMPRODUCT((Table10[TrackN]=Table9[[#This Row],[TrackN]])*(Table10[Tag]=1)*(ROW(Table10[])-MIN(ROW(Table10[]))+1)))),\"\")","v":""},"Carter"]
[null,"A387",{"$f":"IFERROR(INDEX(Table10[Date],1/(1/SUMPRODUCT((Table10[TrackN]=Table9[[#This Row],[TrackN]])*(Table10[Tag]=1)*(ROW(Table10[])-MIN(ROW(Table10[]))+1)))),\"\")","v":""},{"$f":"IFERROR(INDEX(Table10[Qty],1/(1/SUMPRODUCT((Table10[TrackN]=Table9[[#This Row],[TrackN]])*(Table10[Tag]=1)*(ROW(Table10[])-MIN(ROW(Table10[]))+1)))),\"\")","v":""},"Hall"]
[null,"A388",{"$f":"IFERROR(INDEX(Table10[Date],1/(1/SUMPRODUCT((Table10[TrackN]=Table9[[#This Row],[TrackN]])*(Table10[Tag]=1)*(ROW(Table10[])-MIN(ROW(Table10[]))+1)))),\"\")","v":""},{"$f":"IFERROR(INDEX(Table10[Qty],1/(1/SUMPRODUCT((Table10[TrackN]=Table9[[#This Row],[TrackN]])*(Table10[Tag]=1)*(ROW(Table10[])-MIN(ROW(Table10[]))+1)))),\"\")","v":""},"Cox"]
[null,"A389",{"$f":"IFERROR(INDEX(Table10[Date],1/(1/SUMPRODUCT((Table10[TrackN]=Table9[[#This Row],[TrackN]])*(Table10[Tag]=1)*(ROW(Table10[])-MIN(ROW(Table10[]))+1)))),\"\")","v":""},{"$f":"IFERROR(INDEX(Table10[Qty],1/(1/SUMPRODUCT((Table10[TrackN]=Table9[[#This Row],[TrackN]])*(Table10[Tag]=1)*(ROW(Table10[])-MIN(ROW(Table10[]))+1)))),\"\")","v":""},"Robinson"]
[null,"A390",{"$f":"IFERROR(INDEX(Table10[Date],1/(1/SUMPRODUCT((Table10[TrackN]=Table9[[#This Row],[TrackN]])*(Table10[Tag]=1)*(ROW(Table10[])-MIN(ROW(Table10[]))+1)))),\"\")","v":""},{"$f":"IFERROR(INDEX(Table10[Qty],1/(1/SUMPRODUCT((Table10[TrackN]=Table9[[#This Row],[TrackN]])*(Table10[Tag]=1)*(ROW(Table10[])-MIN(ROW(Table10[]))+1)))),\"\")","v":""},"Johnson"]
[null,"A391",{"$f":"IFERROR(INDEX(Table10[Date],1/(1/SUMPRODUCT((Table10[TrackN]=Table9[[#This Row],[TrackN]])*(Table10[Tag]=1)*(ROW(Table10[])-MIN(ROW(Table10[]))+1)))),\"\")","v":""},{"$f":"IFERROR(INDEX(Table10[Qty],1/(1/SUMPRODUCT((Table10[TrackN]=Table9[[#This Row],[TrackN]])*(Table10[Tag]=1)*(ROW(Table10[])-MIN(ROW(Table10[]))+1)))),\"\")","v":""},"Patterson"]
[null,"A392",{"$f":"IFERROR(INDEX(Table10[Date],1/(1/SUMPRODUCT((Table10[TrackN]=Table9[[#This Row],[TrackN]])*(Table10[Tag]=1)*(ROW(Table10[])-MIN(ROW(Table10[]))+1)))),\"\")","v":""},{"$f":"IFERROR(INDEX(Table10[Qty],1/(1/SUMPRODUCT((Table10[TrackN]=Table9[[#This Row],[TrackN]])*(Table10[Tag]=1)*(ROW(Table10[])-MIN(ROW(Table10[]))+1)))),\"\")","v":""},"Harris"]
[null,"A393",{"$f":"IFERROR(INDEX(Table10[Date],1/(1/SUMPRODUCT((Table10[TrackN]=Table9[[#This Row],[TrackN]])*(Table10[Tag]=1)*(ROW(Table10[])-MIN(ROW(Table10[]))+1)))),\"\")","v":""},{"$f":"IFERROR(INDEX(Table10[Qty],1/(1/SUMPRODUCT((Table10[TrackN]=Table9[[#This Row],[TrackN]])*(Table10[Tag]=1)*(ROW(Table10[])-MIN(ROW(Table10[]))+1)))),\"\")","v":""},"Miller"]
[null,"A394",{"$f":"IFERROR(INDEX(Table10[Date],1/(1/SUMPRODUCT((Table10[TrackN]=Table9[[#This Row],[TrackN]])*(Table10[Tag]=1)*(ROW(Table10[])-MIN(ROW(Table10[]))+1)))),\"\")","v":""},{"$f":"IFERROR(INDEX(Table10[Qty],1/(1/SUMPRODUCT((Table10[TrackN]=Table9[[#This Row],[TrackN]])*(Table10[Tag]=1)*(ROW(Table10[])-MIN(ROW(Table10[]))+1)))),\"\")","v":""},"Collins"]
[null,"A395",{"$f":"IFERROR(INDEX(Table10[Date],1/(1/SUMPRODUCT((Table10[TrackN]=Table9[[#This Row],[TrackN]])*(Table10[Tag]=1)*(ROW(Table10[])-MIN(ROW(Table10[]))+1)))),\"\")","v":""},{"$f":"IFERROR(INDEX(Table10[Qty],1/(1/SUMPRODUCT((Table10[TrackN]=Table9[[#This Row],[TrackN]])*(Table10[Tag]=1)*(ROW(Table10[])-MIN(ROW(Table10[]))+1)))),\"\")","v":""},"Gray"]
[null,"A396",{"$f":"IFERROR(INDEX(Table10[Date],1/(1/SUMPRODUCT((Table10[TrackN]=Table9[[#This Row],[TrackN]])*(Table10[Tag]=1)*(ROW(Table10[])-MIN(ROW(Table10[]))+1)))),\"\")","v":""},{"$f":"IFERROR(INDEX(Table10[Qty],1/(1/SUMPRODUCT((Table10[TrackN]=Table9[[#This Row],[TrackN]])*(Table10[Tag]=1)*(ROW(Table10[])-MIN(ROW(Table10[]))+1)))),\"\")","v":""},"Turner"]
[null,"A397",{"$f":"IFERROR(INDEX(Table10[Date],1/(1/SUMPRODUCT((Table10[TrackN]=Table9[[#This Row],[TrackN]])*(Table10[Tag]=1)*(ROW(Table10[])-MIN(ROW(Table10[]))+1)))),\"\")","v":""},{"$f":"IFERROR(INDEX(Table10[Qty],1/(1/SUMPRODUCT((Table10[TrackN]=Table9[[#This Row],[TrackN]])*(Table10[Tag]=1)*(ROW(Table10[])-MIN(ROW(Table10[]))+1)))),\"\")","v":""},"Mitchell"]
[null,"A398",{"$f":"IFERROR(INDEX(Table10[Date],1/(1/SUMPRODUCT((Table10[TrackN]=Table9[[#This Row],[TrackN]])*(Table10[Tag]=1)*(ROW(Table10[])-MIN(ROW(Table10[]))+1)))),\"\")","v":""},{"$f":"IFERROR(INDEX(Table10[Qty],1/(1/SUMPRODUCT((Table10[TrackN]=Table9[[#This Row],[TrackN]])*(Table10[Tag]=1)*(ROW(Table10[])-MIN(ROW(Table10[]))+1)))),\"\")","v":""},"Rogers"]
[null,"A399",{"$f":"IFERROR(INDEX(Table10[Date],1/(1/SUMPRODUCT((Table10[TrackN]=Table9[[#This Row],[TrackN]])*(Table10[Tag]=1)*(ROW(Table10[])-MIN(ROW(Table10[]))+1)))),\"\")","v":""},{"$f":"IFERROR(INDEX(Table10[Qty],1/(1/SUMPRODUCT((Table10[TrackN]=Table9[[#This Row],[TrackN]])*(Table10[Tag]=1)*(ROW(Table10[])-MIN(ROW(Table10[]))+1)))),\"\")","v":""},"Robinson"]
[null,"A400",{"$f":"IFERROR(INDEX(Table10[Date],1/(1/SUMPRODUCT((Table10[TrackN]=Table9[[#This Row],[TrackN]])*(Table10[Tag]=1)*(ROW(Table10[])-MIN(ROW(Table10[]))+1)))),\"\")","v":""},{"$f":"IFERROR(INDEX(Table10[Qty],1/(1/SUMPRODUCT((Table10[TrackN]=Table9[[#This Row],[TrackN]])*(Table10[Tag]=1)*(ROW(Table10[])-MIN(ROW(Table10[]))+1)))),\"\")","v":""},"Peterson"]

{"sheet":"PT","index":6,"n_rows":89,"n_cols":5,"rows_kept":89,"cut":false,"hidden":false,"merged":[]}
[]
[]
[null,"TrackN","Date","Qty","Tag"]
[null,"A101",40652,93,1]
[null,"A105",40562,86,1]
[null,"A106",40648,51,0]
[null,"A113",40651,23,1]
[null,"A119",40608,60,0]
[null,"A121",40631,42,1]
[null,"A131",40657,83,1]
[null,"A142",40579,29,1]
[null,"A143",40555,61,1]
[null,"A146",40607,33,0]
[null,"A147",40619,76,0]
[null,"A149",40583,70,1]
[null,"A155",40565,30,0]
[null,"A159",40613,64,0]
[null,"A161",40627,60,0]
[null,"A163",40661,28,0]
[null,"A164",40588,26,0]
[null,"A166",40563,42,1]
[null,"A167",40596,58,1]
[null,"A168",40606,57,1]
[null,"A169",40552,38,0]
[null,"A177",40607,75,1]
[null,"A178",40647,29,0]
[null,"A185",40604,99,0]
[null,"A189",40549,10,1]
[null,"A190",40661,25,1]
[null,"A206",40658,20,0]
[null,"A207",40608,24,1]
[null,"A210",40638,34,1]
[null,"A213",40618,54,0]
[null,"A214",40598,85,0]
[null,"A215",40612,89,0]
[null,"A220",40583,83,0]
[null,"A222",40629,10,0]
[null,"A223",40651,65,0]
[null,"A224",40637,92,0]
[null,"A225",40637,64,1]
[null,"A226",40636,15,0]
[null,"A228",40630,43,1]
[null,"A231",40629,75,0]
[null,"A239",40605,63,1]
[null,"A241",40612,47,1]
[null,"A252",40584,50,0]
[null,"A254",40649,17,0]
[null,"A265",40622,72,0]
[null,"A267",40634,30,1]
[null,"A268",40596,20,0]
[null,"A269",40562,48,0]
[null,"A273",40642,16,1]
[null,"A274",40635,56,0]
[null,"A276",40631,62,1]
[null,"A277",40563,35,0]
[null,"A284",40638,11,1]
[null,"A290",40588,54,1]
[null,"A299",40599,89,1]
[null,"A313",40616,84,1]
[null,"A322",40656,42,0]
[null,"A325",40578,58,1]
[null,"A331",40661,65,0]
[null,"A332",40616,64,1]
[null,"A334",40554,28,0]
[null,"A335",40569,22,0]
[null,"A337",40579,23,0]
[null,"A338",40544,43,0]
[null,"A339",40602,72,1]
[null,"A340",40630,56,1]
[null,"A341",40603,39,0]
[null,"A342",40659,31,1]
[null,"A346",40563,97,1]
[null,"A347",40606,25,0]
[null,"A348",40627,87,1]
[null,"A349",40599,76,0]
[null,"A350",40566,30,1]
[null,"A352",40625,31,1]
[null,"A354",40588,64,0]
[null,"A355",40579,85,0]
[null,"A357",40596,40,0]
[null,"A361",40617,14,0]
[null,"A369",40573,37,1]
[null,"A377",40589,42,1]
[null,"A378",40630,75,0]
[null,"A385",40656,86,1]
[null,"A390",40552,20,0]
[null,"A398",40657,82,0]
[null,"A399",40641,92,0]
[null,"A400",40644,83,0]